Workbook

Sheet Table 1
A1: TABLE 1: | C1: Registrations* and timeliness** reported by registries as at 06/01/12
L2: 2010 Numbers | N2: 2010 | O2: Population
A3: Registry | C3: 2001 | D3: 2002 | E3: 2003 | F3: 2004 | G3: 2005 | H3: 2006 | I3: 2007 | J3: 2008 | K3: 2009 | L3: Initial £ | M3: ONS ready £ | N3: % ONS ready*** | O3: 2010 (for new areas) ^
A4: England (total) | C4: =SUM(C5:C12) -> 233674 | D4: 233251 | E4: 238078 | F4: 243582 | G4: 248057 | H4: 253896 | I4: 256371 | J4: 264302 | K4: 271008 | L4: =SUM(L5:L12) -> 1281 | M4: =SUM(M5:M12) -> 269295 | N4: =M4/((I4+J4+K4)/3)*100 -> 102.046784 | O4: =SUM(O5:O12) -> 52024000
B5: Eastern ^ | C5: 25206 | D5: 25489 | E5: 25882 | F5: 26363 | G5: 27161 | H5: 27966 | I5: 28425 | J5: 30131 | K5: 30531 | L5: 0 | M5: 30381 | N5: 102.3078564 | O5: 5832000
B6: North West | C6: 32820 | D6: 32169 | E6: 32917 | F6: 33600 | G6: 34130 | H6: 35031 | I6: 34612 | J6: 36647 | K6: 38204 | L6: 0 | M6: 37493 | N6: 102.7552689 | O6: 6650000
B7: Northern & Yorkshire | C7: 33218 | D7: 33716 | E7: 34205 | F7: 34096 | G7: 34948 | H7: 35680 | I7: 36316 | J7: 37314 | K7: 37414 | L7: 350 | M7: 36820 | N7: 99.47408235 | O7: 6800000
B8: Oxford | C8: 11761 | D8: 11743 | E8: 11945 | F8: 12720 | G8: 12432 | H8: 12801 | I8: 13010 | J8: 13590 | K8: 14128 | L8: 0 | M8: 13792 | N8: 101.591043 | O8: 2941000
B9: South & West | C9: 35955 | D9: 35549 | E9: 36544 | F9: 37910 | G9: 38783 | H9: 39670 | I9: 39645 | J9: 40027 | K9: 40618 | L9: 0 | M9: 41176 | N9: 102.6918281 | O9: 7163000
B10: Thames ^ | C10: 47208 | D10: 46743 | E10: 47502 | F10: 48032 | G10: 49023 | H10: 49754 | I10: 50801 | J10: 51998 | K10: 53901 | L10: 0 | M10: 53636 | N10: 102.6853861 | O10: 12094000
B11: Trent | C11: 23100 | D11: 22872 | E11: 23643 | F11: 24825 | G11: 25405 | H11: 25937 | I11: 26593 | J11: 27361 | K11: 28188 | L11: 931 | M11: 27474 | N11: 100.3408731 | O11: 5089000
B12: West Midlands | C12: 24406 | D12: 24970 | E12: 25440 | F12: 26036 | G12: 26175 | H12: 27057 | I12: 26969 | J12: 27234 | K12: 28024 | L12: 0 | M12: 28523 | N12: 104.0643584 | O12: 5455000
A13: Scotland | C13: 26161 | D13: 26734 | E13: 27053 | F13: 27767 | G13: 27385 | H13: 27917 | I13: 28693 | J13: 29477 | K13: 30061 | L13: 2291 | M13: 27500 | N13: 93.50455055 | O13: 5222000
A14: Wales | C14: 15756 | D14: 15915 | E14: 16324 | F14: 16903 | G14: 16722 | H14: 17370 | I14: 17515 | J14: 17924 | K14: 17748 | L14: 0 | M14: 17907 | N14: 101.0040047 | O14: 3006000
A15: Northern Ireland | C15: 6605 | D15: 6824 | E15: 7076 | F15: 7206 | G15: 7270 | H15: 7503 | I15: 7946 | J15: 8251 | K15: 8407 | L15: 0 | M15: 8081 | N15: 98.5327589 | O15: 1799000
A16: UK Total | C16: =SUM(C5:C15) -> 282196 | D16: 282724 | E16: 288531 | F16: 295458 | G16: 299434 | H16: 306686 | I16: 310525 | J16: 319954 | K16: 327224 | L16: =SUM(L5:L15) -> 3572 | M16: =SUM(M5:M15) -> 322783 | N16: =M16/((I16+J16+K16)/3)*100 -> 101.1116181 | O16: =SUM(O5:O15) -> 62051000
M17: Target: | N17: 100%**
A18: * All invasive cases excluding non-melanoma skin cancer
A19: ** For the English and Welsh Registries, all cases diagnosed in a given calendar year should have been completed, entered onto the registry computer system and sent to ONS within 18 months of the end of the calendar year.
A20: Additionally, Wales will have a target of 100% completeness within 12 months of the end of the calendar year
A21: ***The percentage classified as being ONS Ready is compared to the average number of registrations in 2007-2009
A22: £ Initial covers cases where not all the basic information has been received or validity has not been confirmed. ONS ready is defined as "of a standard usable for analysis and in publications"
A23: # The percentage complete for ONS Received is compared to the number of Initial plus the ONS Ready cases for 2008. These may be over 100% if registries have sent records to ONS already which they
A24: subsequently cancel/amend on their own database but have not yet sent these changes through to ONS
A25: ^ Population defined using Lower Super Output Area populations for 2009 on UKACR website www.ukacr.org to the nearest thousand
A27: All subsequent tables report on the diagnosis year 2010 and Scotland report on the diagnosis year 2009 unless otherwise stated.
A29: Note: Even in cancer registries which rely on active notification of cases, cancer incidence figures do not reach stability for some years after the end of a given year because of a small but steady stream of late registrations, some
A30: of which first come to the attention of the registry through death certification

Sheet Tables1_2_3
A1: Standard Proforma for Reporting Registry Performance
D2: red text = UK/England don’t meet target
E3: strange compared to UK/England
E4: peer review or target/expected value not met
A6: All xnmsc unless stated
A7: Table No. & Parameters | B7: Target /Expected Value | C7: UK Avg | D7: England Avg | E7: ECRIC | F7: NWCIS | G7: NYCRIS | H7: OCIU | I7: SWCIS | J7: Thames | K7: Trent | L7: WMCIU | M7: Scotland | N7: WCISU | O7: NICR
A8: Table 1 Registrations and timeliness
A9: % ONS ready | B9: 100% +2% | C9: 100.8138191 | D9: 101.988837 | E9: 102.3 | F9: 102.8 | G9: 99.5 | H9: 101.6 | I9: 102.7 | J9: 102.7 | K9: 100.3 | L9: 104.1 | M9: 93.5 | N9: 101 | O9: 98.5
A10: Table 2A % change in registrations - males
A11: Lung | B11: 95% CI | C11: -0.09090909091 | D11: -0.425 | E11: -1.3 | F11: 5 | G11: -5.1 | H11: 0.5 | I11: 3.3 | J11: -1.9 | K11: -3.9 | L11: 0 | M11: 5.2 | N11: -5 | O11: 2.2
A12: Melanoma of skin | B12: 95% CI | C12: 12.08181818 | D12: 11.4125 | E12: 3.6 | F12: 23.7 | G12: 10.7 | H12: 14 | I12: 14.3 | J12: 8.4 | K12: 16.8 | L12: -0.2 | M12: 12.1 | N12: 34 | O12: -4.5
A13: Colorectal | B13: 95% CI | C13: 4.7 | D13: 3.8625 | E13: 3.7 | F13: -3.5 | G13: 0.3 | H13: 8 | I13: 3.3 | J13: 7.3 | K13: 6.8 | L13: 5 | M13: 7.5 | N13: 9 | O13: 4.3
A14: Prostate | B14: 95% CI | C14: 3.427272727 | D14: 4.95 | E14: 7.3 | F14: 8.7 | G14: 2 | H14: -1.1 | I14: 6.3 | J14: 3.3 | K14: 4.7 | L14: 8.4 | M14: 5 | N14: -1 | O14: -5.9
A15: Bladder | B15: 95% CI | C15: -2.172727273 | D15: -2.2625 | E15: -6.7 | F15: -6.4 | G15: 0.8 | H15: -1.3 | I15: 0 | J15: -6.8 | K15: -7.3 | L15: 9.6 | M15: -2.2 | N15: -2.1 | O15: -1.5
A16: Haematology | B16: 95% CI | C16: 1.590909091 | D16: 3.1375 | E16: 3.7 | F16: 0.7 | G16: 6.8 | H16: -3.5 | I16: -1.9 | J16: 7 | K16: 4 | L16: 8.3 | M16: 4.9 | N16: -10.6 | O16: -1.9
A17: All xnmsc | B17: 95% CI | C17: 2.254545455 | D17: 2.775 | E17: 3 | F17: 2.7 | G17: 0.1 | H17: 0.7 | I17: 3.6 | J17: 2.7 | K17: 4.3 | L17: 5.1 | M17: 4.7 | N17: 0.2 | O17: -2.3
A18: Table 2B % change in registrations - females
A19: Lung | B19: 95% CI | C19: 1.954545455 | D19: 2.7625 | E19: 2.5 | F19: 6.3 | G19: 0 | H19: 1.8 | I19: 8.1 | J19: -1.6 | K19: 1.9 | L19: 3.1 | M19: 1.9 | N19: 1.3 | O19: -3.8
A20: Breast Invasive | B20: 95% CI | C20: 3.363636364 | D20: 3.45 | E20: 3 | F20: 2 | G20: 0.8 | H20: 5.2 | I20: 1.1 | J20: 5.8 | K20: 5.7 | L20: 4 | M20: 5 | N20: 2.6 | O20: 1.8
A21: Breast In Situ | B21: 95% CI | C21: 1.890909091 | D21: 0.8 | E21: -12.7 | F21: 9 | G21: -0.9 | H21: -6.8 | I21: 1.6 | J21: 5.7 | K21: -2.2 | L21: 12.7 | M21: -0.2 | N21: 6 | O21: 8.6
A22: Cervix Invasive | B22: 95% CI | C22: -9.345454545 | D22: -7.875 | E22: 4.8 | F22: -16.3 | G22: -9 | H22: -5.4 | I22: -6.7 | J22: -4.5 | K22: -10.7 | L22: -15.2 | M22: 9.6 | N22: -27.5 | O22: -21.9
A23: Cervix In Situ | B23: 95% CI | C23: -0.9909090909 | D23: -6.3875 | E23: 6.7 | F23: -31.6 | G23: 1.2 | H23: 0 | I23: -3.8 | J23: -18.1 | K23: -2.7 | L23: -2.8 | M23: 26 | N23: 17.2 | O23: -3
A24: Melanoma of skin | B24: 95% CI | C24: 8.245454545 | D24: 8.9625 | E24: 3.8 | F24: 19.5 | G24: 15.5 | H24: 2.6 | I24: 6.4 | J24: 2.3 | K24: 2.7 | L24: 18.9 | M24: 6.5 | N24: 8.4 | O24: 4.1
A25: Colorectal | B25: 95% CI | C25: 0.6454545455 | D25: 0.575 | E25: 4 | F25: -0.7 | G25: -0.5 | H25: -0.7 | I25: 4.5 | J25: -0.3 | K25: -1.7 | L25: 0 | M25: 5.5 | N25: -4.8 | O25: 1.8
A26: Bladder | B26: 95% CI | C26: 0.4909090909 | D26: 0.275 | E26: 1 | F26: 0 | G26: -5.1 | H26: -9.7 | I26: 1 | J26: -9.1 | K26: 4 | L26: 20.1 | M26: 7.1 | N26: -4.4 | O26: 0.5
A27: Haematology | B27: 95% CI | C27: 2.254545455 | D27: 2.3125 | E27: -5.4 | F27: 5.4 | G27: -0.1 | H27: 7.8 | I27: 5 | J27: 4.1 | K27: 0.6 | L27: 1.1 | M27: 4.6 | N27: 6.1 | O27: -4.4
A28: All xnmsc | B28: 95% CI | C28: 2.081818182 | D28: 2.1875 | E28: 1.6 | F28: 2.9 | G28: 0.1 | H28: 2.5 | I28: 1.8 | J28: 2.7 | K28: 3 | L28: 2.9 | M28: 4.8 | N28: 1.8 | O28: -1.2
A29: Table 2C Childhood cancer incidence rates
A30: Age 0-4
A31: M | B31: 19.9 | C31: 19.43138093 | D31: 18.65979292 | E31: 13.7 | F31: 16.4 | G31: 14.9 | H31: 14 | I31: 25 | J31: 21.16163579 | K31: 26.1 | L31: 17.4 | M31: 20.3 | N31: 19.1 | O31: 25.1
A32: F | B32: 18.2 | C32: 17.12675203 | D32: 17.67578158 | E32: 19 | F32: 18.4 | G32: 11.6 | H32: 16.8 | I32: 23.6 | J32: 19.35635288 | K32: 15.1 | L32: 17.1 | M32: 14.2 | N32: 13 | O32: 19.8
A33: Age 5-9
A34: M | B34: 11.6 | C34: 12.38997578 | D34: 13.3026567 | E34: 11.9 | F34: 12.1 | G34: 10.6 | H34: 21.2 | I34: 10 | J34: 13.72748972 | K34: 16.6 | L34: 10 | M34: 6.6 | N34: 6 | O34: 17.3
A35: F | B35: 8.9 | C35: 7.917178141 | D35: 7.770917542 | E35: 8.7 | F35: 11.6 | G35: 6.1 | H35: 3.5 | I35: 6.6 | J35: 7.256472774 | K35: 9.1 | L35: 9.1 | M35: 9.9 | N35: 7.7 | O35: 7.3
A36: Age 10-14
A37: M | B37: 11.4 | C37: 12.50190319 | D37: 13.08529429 | E37: 16 | F37: 12.1 | G37: 13.6 | H37: 13.1 | I37: 15.9 | J37: 12.35624829 | K37: 10.9 | L37: 10.8 | M37: 10.6 | N37: 11 | O37: 11.2
A38: F | B38: 10.1 | C38: 10.18111943 | D38: 10.10078122 | E38: 9.5 | F38: 10.1 | G38: 6.3 | H38: 12.7 | I38: 8.6 | J38: 11.88176728 | K38: 13.6 | L38: 8.2 | M38: 10.5 | N38: 10.5 | O38: 10.2
A39: Table 2D % death certificate only (males & females)
A40: Lung | B40: 3 | C40: 2.000743897 | D40: 2.222262784 | E40: 0 | F40: 4 | G40: 2.1 | H40: 4 | I40: 1.8 | J40: 3 | K40: 2 | L40: 1 | M40: 0.6 | N40: 2.9 | O40: 0.8
A41: Breast Invasive | B41: 0.6 | C41: 0.5816002018 | D41: 0.6877432613 | E41: 0 | F41: 1.2 | G41: 0.2 | H41: 1.1 | I41: 0.6 | J41: 0.8 | K41: 1.3 | L41: 0.3 | M41: 0.3 | N41: 0.6 | O41: 0
A42: Cervix Invasive | B42: 0.5 | C42: 0.292403329 | D42: 0.1764448213 | E42: 0 | F42: 0 | G42: 0 | H42: 0 | I42: 0 | J42: 0.2 | K42: 0.8 | L42: 0.4 | M42: 0.3 | N42: 1.5 | O42: 0
A43: Melanoma of skin | B43: 0.2 | C43: 0.1058237471 | D43: 0.1330076523 | E43: 0 | F43: 0.2 | G43: 0 | H43: 0.3 | I43: 0.1 | J43: 0.2 | K43: 0.3 | L43: 0 | M43: 0 | N43: 0.1 | O43: 0
A44: Colorectal | B44: 1.4 | C44: 1.105691344 | D44: 1.182146421 | E44: 0 | F44: 2.1 | G44: 0.9 | H44: 2.1 | I44: 1 | J44: 1.8 | K44: 1.1 | L44: 0.5 | M44: 0.5 | N44: 2 | O44: 0.2
A45: Prostate | B45: 1.1 | C45: 0.8408566775 | D45: 0.9624416395 | E45: 0 | F45: 2 | G45: 0.4 | H45: 1.4 | I45: 0.8 | J45: 0.9 | K45: 1.8 | L45: 0.4 | M45: 0.2 | N45: 1.2 | O45: 0.1
A46: Bladder | B46: 1.3 | C46: 1.185321306 | D46: 1.221483462 | E46: 0 | F46: 1.8 | G46: 0.6 | H46: 2.3 | I46: 1 | J46: 1.3 | K46: 2 | L46: 0.7 | M46: 0.3 | N46: 1.6 | O46: 1.4
A47: Haematology | B47: 1.8 | C47: 1.515052443 | D47: 1.706363739 | E47: 0 | F47: 3.3 | G47: 0.7 | H47: 2.7 | I47: 1.2 | J47: 2 | K47: 2.7 | L47: 1.1 | M47: 0.3 | N47: 2 | O47: 0.8
A48: III-defined sites | B48: 8.4 | C48: 7.667009758 | D48: 8.11148504 | E48: 0.1 | F48: 21.2 | G48: 3.3 | H48: 10.3 | I48: 11.4 | J48: 6.9 | K48: 7.9 | L48: 3.8 | M48: 3.8 | N48: 11.6 | O48: 4.1
A49: All xnmsc Male | B49: 2 | C49: 1.288039109 | D49: 1.403783747 | E49: 0 | F49: 2.6 | G49: 1.2 | H49: 2.2 | I49: 1.2 | J49: 1.7 | K49: 1.8 | L49: 0.6 | M49: 0.4 | N49: 2 | O49: 0.5
A50: All xnmsc Female | B50: 2 | C50: 1.622427758 | D50: 1.756934721 | E50: 0 | F50: 3.3 | G50: 1 | H50: 2.9 | I50: 1.6 | J50: 2.1 | K50: 2.3 | L50: 0.8 | M50: 0.7 | N50: 2.5 | O50: 0.6
A51: All xnmsc M<75 | B51: 0.8 | C51: 0.6006681327 | D51: 0.5677569481 | E51: 0 | F51: 0.9 | G51: 0.7 | H51: 0.8 | I51: 0.4 | J51: 0.8 | K51: 0.8 | L51: 0.2 | M51: 0.2 | N51: 0.9 | O51: 1
A52: All xnmsc M>=75 | B52: 3.4 | C52: 2.460431612 | D52: 2.759085713 | E52: 0 | F52: 5.7 | G52: 2 | H52: 4.9 | I52: 2.4 | J52: 3.3 | K52: 3.5 | L52: 0.2 | M52: 0.8 | N52: 3.8 | O52: 0.4
A53: All xnmsc F<75 | B53: 0.6 | C53: 0.7 | D53: 0.6 | E53: 0 | F53: 0.8 | G53: 0.4 | H53: 0.7 | I53: 0.2 | J53: 0.6 | K53: 0.6 | L53: 1.4 | M53: 0.1 | N53: 0.7 | O53: 1.6
A54: All xnmsc F>=75 | B54: 4.4 | C54: 3.858418311 | D54: 4.243320585 | E54: 0 | F54: 8 | G54: 2.2 | H54: 7.3 | I54: 3.8 | J54: 4.8 | K54: 5.6 | L54: 2.1 | M54: 1.7 | N54: 5.8 | O54: 1
A55: Table 2E % death certificate only (males & females) for previous diagnosis year
A56: Lung | B56: 3.3 | C56: 1.972235596 | D56: 2.178955821 | E56: 0.1 | F56: 3.4590044 | G56: 1.6 | H56: 2.9 | I56: 2.3 | J56: 3 | K56: 1.3 | L56: 0.7 | M56: 0.3 | N56: 3.8 | O56: 0.2
A57: Breast Invasive | B57: 0.7 | C57: 0.4809919026 | D57: 0.5314138893 | E57: 0 | F57: 1.03754 | G57: 0.3 | H57: 0.6 | I57: 0.7 | J57: 0.7 | K57: 0.5 | L57: 0.2 | M57: 0.1 | N57: 0.8 | O57: 0.1
A58: Cervix Invasive | B58: 0.5 | C58: 0.4798410144 | D58: 0.5972813948 | E58: 0 | F58: 0.7968128 | G58: 0.1 | H58: 0.8 | I58: 0.2 | J58: 0.6 | K58: 1.2 | L58: 0.7 | M58: 0 | N58: 0.5 | O58: 0
A59: Melanoma of skin | B59: 0.2 | C59: 0.1219712988 | D59: 0.1302105359 | E59: 0 | F59: 0.2945508 | G59: 0.1 | H59: 0.2 | I59: 0.2 | J59: 0.2 | K59: 0.1 | L59: 0 | M59: 0 | N59: 0.3 | O59: 0
A60: Colorectal | B60: 1.5 | C60: 1.160656261 | D60: 1.232480227 | E60: 0.1 | F60: 1.576377 | G60: 0.9 | H60: 1.3 | I60: 1.4 | J60: 1.7 | K60: 1 | L60: 0.8 | M60: 0.3 | N60: 2.4 | O60: 0.2
A61: Prostate | B61: 1.2 | C61: 0.8165396777 | D61: 0.903540668 | E61: 0 | F61: 1.876256 | G61: 0.4 | H61: 1.3 | I61: 0.9 | J61: 0.6 | K61: 1.2 | L61: 0.7 | M61: 0.2 | N61: 1.4 | O61: 0.2
A62: Bladder | B62: 1.4 | C62: 0.9514896096 | D62: 1.108956108 | E62: 0 | F62: 1.842665 | G62: 0.5 | H62: 0.4 | I62: 1.9 | J62: 2 | K62: 0.7 | L62: 0.6 | M62: 0.4 | N62: 1.2 | O62: 0
A63: Haematology | B63: 2.1 | C63: 1.130589753 | D63: 1.288957662 | E63: 0 | F63: 1.927195 | G63: 0.7 | H63: 1.4 | I63: 1.3 | J63: 1.4 | K63: 1.5 | L63: 1.3 | M63: 0.3 | N63: 1.8 | O63: 0
A64: III-defined sites | B64: 8.3 | C64: 6.645285977 | D64: 7.369606275 | E64: 0 | F64: 10.32746 | G64: 3.4 | H64: 11.7 | I64: 8.9 | J64: 7.1 | K64: 7.1 | L64: 3.8 | M64: 3.4 | N64: 10.5 | O64: 0.2
A65: All xnmsc Male | B65: 2 | C65: 1.215097533 | D65: 1.345437955 | E65: 0.1 | F65: 2.103801 | G65: 1 | H65: 1.6 | I65: 1.3 | J65: 1.6 | K65: 1.4 | L65: 0.7 | M65: 0.4 | N65: 2 | O65: 0.2
A66: All xnmsc Female | B66: 2 | C66: 1.425645573 | D66: 1.547314003 | E66: 0 | F66: 2.515589 | G66: 0.9 | H66: 2.2 | I66: 1.8 | J66: 1.9 | K66: 1.5 | L66: 0.7 | M66: 0.5 | N66: 2.7 | O66: 0.2
A67: All xnmsc M<75 | B67: 0.9 | C67: 0.5601931746 | D67: 0.6024495719 | E67: 0 | F67: 0.8041402 | G67: 0.6 | H67: 0.5 | I67: 0.5 | J67: 0.9 | K67: 0.6 | L67: 0.2 | M67: 0.2 | N67: 1 | O67: 0.1
A68: All xnmsc M>=75 | B68: 3.6 | C68: 2.340392684 | D68: 2.652422708 | E68: 0.1 | F68: 4.476094 | G68: 1.5 | H68: 3.5 | I68: 2.7 | J68: 2.8 | K68: 2.7 | L68: 1.6 | M68: 0.7 | N68: 3.7 | O68: 0.1
A69: All xnmsc F<75 | B69: 0.7 | C69: 0.401033638 | D69: 0.423830709 | E69: 0 | F69: 0.682061 | G69: 0.3 | H69: 0.4 | I69: 0.4 | J69: 0.7 | K69: 0.4 | L69: 0.1 | M69: 0.1 | N69: 0.9 | O69: 0
A70: All xnmsc F>=75 | B70: 4.5 | C70: 3.262435012 | D70: 3.619450191 | E70: 0 | F70: 5.899302 | G70: 1.9 | H70: 5.9 | I70: 4.1 | J70: 4.1 | K70: 3.5 | L70: 1.9 | M70: 1.1 | N70: 5.7 | O70: 0.2
A71: Table 2F % Zero survival (males & females)
A72: Lung | B72: 7.5 | C72: 4.16986066 | D72: 4.880728891 | E72: 2.4 | F72: 7 | G72: 3.5 | H72: 6.9 | I72: 6 | J72: 5 | K72: 4.4 | L72: 3.8 | M72: 1.6 | N72: 4.2 | O72: 1.1
A73: Breast Invasive | B73: 1.3 | C73: 0.7485018966 | D73: 0.8808617022 | E73: 0.2 | F73: 1.4 | G73: 0.2 | H73: 1.2 | I73: 0.9 | J73: 1.2 | K73: 1.6 | L73: 0.3 | M73: 0.4 | N73: 0.7 | O73: 0.1
A74: Cervix Invasive | B74: 1.1 | C74: 0.7395858088 | D74: 0.691320731 | E74: 0.4 | F74: 0.3 | G74: 0 | H74: 0.9 | I74: 0.9 | J74: 0.7 | K74: 1.5 | L74: 0.8 | M74: 0.3 | N74: 2.3 | O74: 0
A75: Melanoma of skin | B75: 0.5 | C75: 0.1515733882 | D75: 0.1959134087 | E75: 0.2 | F75: 0.2 | G75: 0 | H75: 0.3 | I75: 0.2 | J75: 0.3 | K75: 0.4 | L75: 0 | M75: 0 | N75: 0.1 | O75: 0
A76: Colorectal | B76: 3.4 | C76: 2.175017818 | D76: 2.520676983 | E76: 1.2 | F76: 3.6 | G76: 1.9 | H76: 4 | I76: 2.3 | J76: 2.8 | K76: 2.7 | L76: 1.8 | M76: 0.9 | N76: 2.5 | O76: 0.4
A77: Prostate | B77: 2.2 | C77: 1.169790882 | D77: 1.317956123 | E77: 0.2 | F77: 2.3 | G77: 0.6 | H77: 1.7 | I77: 1.3 | J77: 1.4 | K77: 2.4 | L77: 0.7 | M77: 0.5 | N77: 1.7 | O77: 0.1
A78: Bladder | B78: 2.7 | C78: 1.827874961 | D78: 2.042494738 | E78: 0.4 | F78: 2.3 | G78: 0.9 | H78: 3.4 | I78: 2.1 | J78: 2.2 | K78: 3 | L78: 2 | M78: 0.7 | N78: 1.7 | O78: 1.4
A79: Haematology | B79: 4.5 | C79: 2.655230456 | D79: 3.042136187 | E79: 0.8 | F79: 4.4 | G79: 2.1 | H79: 4.5 | I79: 2.7 | J79: 3.3 | K79: 4.2 | L79: 2.4 | M79: 1 | N79: 3 | O79: 0.9
A80: III-defined sites | B80: 15.1 | C80: 11.43475379 | D80: 12.63199189 | E80: 4.4 | F80: 25.5 | G80: 8.9 | H80: 13.7 | I80: 15.4 | J80: 12.1 | K80: 12.1 | L80: 8.8 | M80: 5.4 | N80: 14 | O80: 5.3
A81: All xnmsc Male | B81: 4.2 | C81: 2.39557389 | D81: 2.732941782 | E81: 1.2 | F81: 4.2 | G81: 2.1 | H81: 3.6 | I81: 2.9 | J81: 2.8 | K81: 3.1 | L81: 1.9 | M81: 1.1 | N81: 2.6 | O81: 0.8
A82: All xnmsc Female | B82: 4 | C82: 2.621587502 | D82: 2.958658548 | E82: 1.1 | F82: 4.7 | G82: 2 | H82: 4.1 | I82: 3 | J82: 3.2 | K82: 3.6 | L82: 1.9 | M82: 1.2 | N82: 3.2 | O82: 0.8
A83: All xnmsc M<75 | B83: 2.3 | C83: 1.291821888 | D83: 1.361341712 | E83: 0.7 | F83: 1.9 | G83: 1.3 | H83: 1.5 | I83: 1.4 | J83: 1.4 | K83: 1.6 | L83: 1.1 | M83: 0.6 | N83: 1.2 | O83: 1.5
A84: All xnmsc M>=75 | B84: 7.4 | C84: 4.287006478 | D84: 4.938243991 | E84: 2.7 | F84: 8.4 | G84: 3.8 | H84: 7.5 | I84: 5.4 | J84: 5.4 | K84: 5.6 | L84: 0.7 | M84: 2 | N84: 5 | O84: 0.7
A85: All xnmsc F<75 | B85: 1.5 | C85: 1.258817516 | D85: 1.335214635 | E85: 0.7 | F85: 1.5 | G85: 0.7 | H85: 1.2 | I85: 0.8 | J85: 1.1 | K85: 1.2 | L85: 3.5 | M85: 0.3 | N85: 0.9 | O85: 2
A86: All xnmsc F>=75 | B86: 8.7 | C86: 5.886907622 | D86: 6.724385963 | E86: 2.3 | F86: 10.7 | G86: 4.5 | H86: 9.9 | I86: 6.7 | J86: 7.1 | K86: 8.2 | L86: 4.4 | M86: 2.8 | N86: 7.2 | O86: 0.9
A87: Table 2G % microscopically verified (males & females)
A88: Lung | B88: 68.63565983 | C88: 70.12227488 | D88: 69.30463524 | E88: 70.4 | F88: 63.1 | G88: 66 | H88: 73.4 | I88: 71.8 | J88: 71.5 | K88: 67 | L88: 71.3 | M88: 70.8 | N88: 73 | O88: 73.1
A89: Breast Invasive | B89: 96.70332819 | C89: 97.14216198 | D89: 96.6302578 | E89: 97.6 | F89: 94.4 | G89: 98.1 | H89: 96.4 | I89: 97.4 | J89: 96 | K89: 94.7 | L89: 98.5 | M89: 98.5 | N89: 97.8 | O89: 99.2
A90: Breast In Situ | B90: 99.5858991 | C90: 98.94723908 | D90: 98.62745374 | E90: 99.7 | F90: 97.3 | G90: 99.8 | H90: 97.8 | I90: 100 | J90: 95.1 | K90: 99.4 | L90: 100 | M90: 100 | N90: 99.4 | O90: 100
A91: Cervix Invasive | B91: 95.83362579 | C91: 96.83446914 | D91: 96.23733409 | E91: 98.8 | F91: 95.2 | G91: 94.8 | H91: 95.5 | I91: 96.5 | J91: 96.6 | K91: 94.2 | L91: 98.4 | M91: 98.8 | N91: 97.7 | O91: 98.8
A92: Cervix In Situ | B92: 99.91014399 | C92: 99.81424184 | D92: 99.76958253 | E92: 100 | F92: 99.8 | G92: 100 | H92: 98.4 | I92: 100 | J92: 100 | K92: 99.9 | L92: 100 | M92: 100 | N92: 99.8 | O92: 100
A93: Melanoma of skin | B93: 97.51530086 | C93: 98.13118034 | D93: 97.98888137 | E93: 99.8 | F93: 97.4 | G93: 98.8 | H93: 95.8 | I93: 98.6 | J93: 98.8 | K93: 96.3 | L93: 98.4 | M93: 99.8 | N93: 96.8 | O93: 98.9
A94: Colorectal | B94: 88.96785896 | C94: 89.61495676 | D94: 88.98170403 | E94: 91.3 | F94: 84.5 | G94: 89.1 | H94: 88.7 | I94: 91.2 | J94: 89.6 | K94: 87.3 | L94: 90.3 | M94: 91.7 | N94: 91.1 | O94: 91.1
A95: Prostate | B95: 88.81882972 | C95: 86.93432945 | D95: 87.00466529 | E95: 84.6 | F95: 88.1 | G95: 87.1 | H95: 90.2 | I95: 86.5 | J95: 90 | K95: 81.2 | L95: 88.4 | M95: 86.8 | N95: 88 | O95: 85.4
A96: Bladder | B96: 89.27262211 | C96: 87.86433769 | D96: 88.60513099 | E96: 93.7 | F96: 86.2 | G96: 89.6 | H96: 83.5 | I96: 92.4 | J96: 90.1 | K96: 82.7 | L96: 90.6 | M96: 91.5 | N96: 84.1 | O96: 82.1
A97: Haematology | B97: 86.72151188 | C97: 85.74341058 | D97: 86.1092319 | E97: 93.9 | F97: 60 | G97: 92.7 | H97: 80.5 | I97: 93.6 | J97: 93.8 | K97: 89.1 | L97: 85.3 | M97: 95.1 | N97: 80.9 | O97: 78.3
A98: All xnmsc Male | B98: 83.11953421 | C98: 83.50977886 | D98: 83.38940272 | E98: 85.2 | F98: 77.6 | G98: 83.6 | H98: 84.7 | I98: 85 | J98: 85.8 | K98: 80.5 | L98: 84.7 | M98: 84.5 | N98: 83.7 | O98: 83.3
A99: All xnmsc Female | B99: 84.96043528 | C99: 85.78923968 | D99: 85.73665997 | E99: 87.4 | F99: 78.4 | G99: 89.5 | H99: 85.5 | I99: 87.4 | J99: 87.4 | K99: 83.2 | L99: 87.1 | M99: 86.6 | N99: 85.2 | O99: 86
A100: Table 2H % Non-specificity of morphology codes for cases which are microscopically verified
A101: Lung | B101: 7 | C101: 6.125838519 | D101: 3.677414415 | E101: 5.3 | F101: 3.5 | G101: 1.6 | H101: 7.1 | I101: 0.2 | J101: 5.2 | K101: 3.4 | L101: 3.1 | M101: 3.2 | N101: 15.5 | O101: 19.3
A102: Breast Invasive | B102: 3 | C102: 2.585480975 | D102: 2.215504947 | E102: 2.2 | F102: 2.8 | G102: 1.5 | H102: 1.9 | I102: 2.5 | J102: 3.4 | K102: 2.3 | L102: 1.1 | M102: 2.8 | N102: 1.2 | O102: 6.7
A103: Breast In Situ | B103: 1.8 | C103: 0.5685870467 | D103: 0.6779388289 | E103: 0.6 | F103: 0.9 | G103: 0.6 | H103: 0 | I103: 0.8 | J103: 2.1 | K103: 0.4 | L103: 0 | M103: 0.2 | N103: 0.6 | O103: 0
A104: Cervix Invasive | B104: 2.3 | C104: 1.582871707 | D104: 1.411788103 | E104: 0 | F104: 1.6 | G104: 0.9 | H104: 1 | I104: 2.1 | J104: 3.3 | K104: 1.2 | L104: 1.2 | M104: 0.6 | N104: 0.8 | O104: 4.7
A105: Cervix In Situ | B105: 0.6 | C105: 0.08144480018 | D105: 0.108125 | E105: 0 | F105: 0.4 | G105: 0.1 | H105: 0 | I105: 0.4 | J105: 0 | K105: 0 | L105: 0 | M105: 0 | N105: 0 | O105: 0
A106: Melanoma of skin | B106: 0 | C106: 0 | D106: 0 | E106: 0 | F106: 0 | G106: 0 | H106: 0 | I106: 0 | J106: 0 | K106: 0 | L106: 0.1 | M106: 0 | N106: 0 | O106: 0
A107: Colorectal | B107: 2.5 | C107: 1.948323415 | D107: 1.874721769 | E107: 2.2 | F107: 1.7 | G107: 0.6 | H107: 2 | I107: 1.6 | J107: 4 | K107: 2 | L107: 1 | M107: 0.6 | N107: 4.9 | O107: 0.9
A108: Prostate | B108: 1.8 | C108: 1.640217921 | D108: 0.9579831453 | E108: 0.6 | F108: 0.8 | G108: 0.3 | H108: 0.3 | I108: 0.1 | J108: 2.3 | K108: 2.9 | L108: 0.4 | M108: 1.6 | N108: 7.9 | O108: 0.9
A109: Bladder | B109: 3.1 | C109: 2.624097342 | D109: 2.7113044 | E109: 2.2 | F109: 4.3 | G109: 1.4 | H109: 2.5 | I109: 1.8 | J109: 6 | K109: 2.3 | L109: 1.2 | M109: 0.9 | N109: 4.7 | O109: 1.6
A110: Haematology | B110: 4.6 | C110: 2.499162863 | D110: 2.385606821 | E110: 1 | F110: 1.1 | G110: 1.3 | H110: 2.5 | I110: 4.4 | J110: 2.6 | K110: 4.2 | L110: 2 | M110: 1.2 | N110: 5.1 | O110: 2.1
A111: All xnmsc Male | B111: 3.9 | C111: 3.12096612 | D111: 2.507427699 | E111: 2.6 | F111: 2.4 | G111: 0.7 | H111: 3 | I111: 2.6 | J111: 3.7 | K111: 3.1 | L111: 2 | M111: 1.8 | N111: 7.4 | O111: 5.1
A112: All xnmsc Female | B112: 4.6 | C112: 3.479986147 | D112: 2.972697112 | E112: 3.2 | F112: 3.2 | G112: 1.3 | H112: 3.4 | I112: 3.4 | J112: 3.9 | K112: 3.4 | L112: 1.9 | M112: 2.7 | N112: 5.7 | O112: 6.1
A113: Table 2I Mortality : Incidence ratios
A114: Lung | B114: 0.85 | C114: 0.8305908542 | D114: 0.8324211821 | E114: 0.84 | F114: 0.835 | G114: 0.81 | H114: 0.86 | I114: 0.81 | J114: 0.8375984252 | K114: 0.8167710319 | L114: 0.85 | M114: 0.7971299391 | N114: 0.81 | O114: 0.87
A115: Breast Invasive | B115: 0.25 | C115: 0.2315096285 | D115: 0.2317718387 | E115: 0.26 | F115: 0.234 | G115: 0.24 | H115: 0.21 | I115: 0.22 | J115: 0.2366041149 | K115: 0.2235705951 | L115: 0.23 | M115: 0.2324312031 | N115: 0.24 | O115: 0.22
A116: Cervix Invasive | B116: 0.32 | C116: 0.3382670532 | D116: 0.3348885396 | E116: 0.36 | F116: 0.4199 | G116: 0.22 | H116: 0.38 | I116: 0.33 | J116: 0.3096330275 | K116: 0.2895752896 | L116: 0.37 | M116: 0.3018292683 | N116: 0.46 | O116: 0.28
A117: Melanoma of skin | B117: 0.18 | C117: 0.1768588064 | D117: 0.1739476655 | E117: 0.21 | F117: 0.1633 | G117: 0.14 | H117: 0.15 | I117: 0.16 | J117: 0.200103146 | K117: 0.1781781782 | L117: 0.19 | M117: 0.1638655462 | N117: 0.16 | O117: 0.23
A118: Colorectal | B118: 0.41 | C118: 0.3849502244 | D118: 0.3893905868 | E118: 0.37 | F118: 0.427 | G118: 0.38 | H118: 0.4 | I118: 0.37 | J118: 0.3914685975 | K118: 0.3966560969 | L118: 0.38 | M118: 0.3793277736 | N118: 0.38 | O118: 0.36
A119: Prostate | B119: 0.27 | C119: 0.2574435068 | D119: 0.2576157335 | E119: 0.26 | F119: 0.259 | G119: 0.27 | H119: 0.24 | I119: 0.26 | J119: 0.2614856161 | K119: 0.2704402516 | L119: 0.24 | M119: 0.2909527073 | N119: 0.22 | O119: 0.26
A120: Bladder | B120: 0.48 | C120: 0.48 | D120: 0.48 | E120: 0.48 | F120: 0.462 | G120: 0.46 | H120: 0.44 | I120: 0.51 | J120: 0.461204221 | K120: 0.5055555556 | L120: 0.52 | M120: 0.5866666667 | N120: 0.39 | O120: 0.48
A121: Haematology | B121: 0.45 | C121: 0.4297977345 | D121: 0.4366975136 | E121: 0.47 | F121: 0.432 | G121: 0.46 | H121: 0.47 | I121: 0.42 | J121: 0.3684113187 | K121: 0.4231687898 | L121: 0.45 | M121: 0.4741949713 | N121: 0.42 | O121: 0.34
A122: All xnmsc Male | B122: 0.52 | C122: 0.5008076263 | D122: 0.4981429053 | E122: 0.51 | F122: 0.522 | G122: 0.5 | H122: 0.49 | I122: 0.48 | J122: 0.4803460879 | K122: 0.5027971545 | L122: 0.5 | M122: 0.5337406467 | N122: 0.47 | O122: 0.52
A123: All xnmsc Female | B123: 0.48 | C123: 0.4657530901 | D123: 0.4611935439 | E123: 0.47 | F123: 0.488 | G123: 0.48 | H123: 0.44 | I123: 0.44 | J123: 0.4513831929 | K123: 0.4501651587 | L123: 0.47 | M123: 0.4837356396 | N123: 0.47 | O123: 0.48
A124: Table 3A Completeness of the dataset - demographics and diagnostic details
A125: Patient's name | B125: 100 | C125: 100 | D125: 100 | E125: 100 | F125: 100 | G125: 100 | H125: 100 | I125: 100 | J125: 100 | K125: 100 | L125: 100 | M125: 100 | N125: 100 | O125: 100
A126: Patient's address | B126: 100 | C126: 99.93247929 | D126: 99.91965902 | E126: 100 | F126: 100 | G126: 100 | H126: 100 | I126: 100 | J126: 99.6 | K126: 99.8 | L126: 100 | M126: 100 | N126: 100 | O126: 99.9
A127: Sex | B127: 100 | C127: 100 | D127: 100 | E127: 100 | F127: 100 | G127: 100 | H127: 100 | I127: 100 | J127: 100 | K127: 100 | L127: 100 | M127: 100 | N127: 100 | O127: 100
A128: Ethnicity | B128: 48.48352939 | C128: 58.49882524 | D128: 73.27088687 | E128: 76.1 | F128: 84.4 | G128: 83.4 | H128: 74.5 | I128: 79.1 | J128: 25.1 | K128: 82.5 | L128: 81 | M128: 27.1 | N128: 30.2 | O128: 0
A129: Date of death (where dead) | B129: 100 | C129: 100 | D129: 100 | E129: 100 | F129: 100 | G129: 100 | H129: 100 | I129: 100 | J129: 100 | K129: 100 | L129: 100 | M129: 100 | N129: 100 | O129: 100
A130: Postcode | B130: 100 | C130: 99.90140873 | D130: 99.99055088 | E130: 100 | F130: 100 | G130: 100 | H130: 100 | I130: 100 | J130: 100 | K130: 100 | L130: 99.9 | M130: 100 | N130: 100 | O130: 99
A131: Date of birth | B131: 100 | C131: 100 | D131: 100 | E131: 100 | F131: 100 | G131: 100 | H131: 100 | I131: 100 | J131: 100 | K131: 100 | L131: 100 | M131: 100 | N131: 100 | O131: 100
A132: Unique health identifier | B132: 99 | C132: 99.67050409 | D132: 99.80068551 | E132: 99.9 | F132: 99.9 | G132: 100 | H132: 99.8 | I132: 99.9 | J132: 99.1 | K132: 100 | L132: 99.9 | M132: 100 | N132: 100 | O132: 98
A133: Anniversary (diagnosis) date | B133: 100 | C133: 99.87881902 | D133: 99.83337616 | E133: 100 | F133: 100 | G133: 100 | H133: 100 | I133: 100 | J133: 98.8 | K133: 100 | L133: 99.9 | M133: 100 | N133: 100 | O133: 100
A134: Site of primary growth | B134: 96.52954164 | C134: 96.89552438 | D134: 96.89291968 | E134: 96.6 | F134: 97.3 | G134: 96.8 | H134: 97.3 | I134: 97.5 | J134: 96.9 | K134: 96.1 | L134: 96.8 | M134: 97 | N134: 96.8 | O134: 96.9
A135: Type of growth | B135: 86.64219999 | C135: 87.70307695 | D135: 87.74169814 | E135: 89.6 | F135: 85.7 | G135: 85.8 | H135: 87 | I135: 89.7 | J135: 89.5 | K135: 85.6 | L135: 89.1 | M135: 88 | N135: 88.2 | O135: 86.6
A136: Behaviour of growth | B136: 99.59049148 | C136: 99.77079165 | D136: 99.68623463 | E136: 100 | F136: 100 | G136: 99.1 | H136: 100 | I136: 100 | J136: 99.8 | K136: 100 | L136: 98.6 | M136: 100 | N136: 100 | O136: 100
A137: Basis of diagnosis | B137: 98.77012331 | C137: 98.48404687 | D137: 99.0714287 | E137: 99.5 | F137: 97.1 | G137: 100 | H137: 100 | I137: 100 | J137: 99.5 | K137: 96.9 | L137: 99.6 | M137: 99.6 | N137: 94.6 | O137: 96.5
A138: Table 3B Completeness of the dataset - treatment and screening information
A139: Therapeutic Surgery (% yes) | B139: 46.5591017 | C139: 40.23237026 | D139: 43.98057115 | E139: 49.3 | F139: 44.5 | G139: 44.1 | H139: 49.9 | I139: 50.1 | J139: 44.9 | K139: 29.3 | L139: 46.7 | M139: 43.9 | N139: 46.8 | O139: 46.7
A140: Radiotherapy (% yes) | B140: 17.00702895 | C140: 15.86686767 | D140: 17.60531256 | E140: 20.7 | F140: 20.3 | G140: 21.3 | H140: 19.5 | I140: 20.4 | J140: 18.8 | K140: 3.8 | L140: 19.9 | M140: 21 | N140: 12.7 | O140: 17.2
A141: Chemotherapy (% yes) | B141: 24.29699868 | C141: 20.9664597 | D141: 22.61863567 | E141: 26.1 | F141: 23.4 | G141: 27.2 | H141: 25.8 | I141: 26.1 | J141: 22.6 | K141: 6.4 | L141: 28.3 | M141: 26.7 | N141: 22.9 | O141: 22.6
A142: Breast cancer - Hormone (% yes) | B142: 25.99972986 | C142: 29.64408583 | D142: 34.62568186 | E142: 52 | F142: 24.6 | G142: 51.4 | H142: 28.5 | I142: 29.2 | J142: 34.4 | K142: 10.8 | L142: 46 | M142: 49 | N142: 0.1 | O142: 58.3
A143: Prostate cancer - Hormone (% yes) | B143: 28.378884 | C143: 31.75416906 | D143: 38.05797356 | E143: 53.1 | F143: 44.4 | G143: 47.7 | H143: 34.2 | I143: 36.8 | J143: 28.5 | K143: 8 | L143: 51.8 | M143: 44.8 | N143: 0 | O143: 43.1
A144: All xnmsc - any treatment, ages 0-24 | C144: 79.27788922 | D144: 85.89497568 | E144: 91.7 | F144: 86.8 | G144: 98.4 | H144: 91.8 | I144: 92.1 | J144: 89.3 | K144: 42.2 | L144: 94.9 | M144: 94.8 | N144: 90.1 | O144: 76.9
A145: All xnmsc - any treatment, ages 25-64 | C145: 75.65442464 | D145: 82.53466042 | E145: 88.6 | F145: 85.4 | G145: 92 | H145: 85.6 | I145: 86.6 | J145: 90 | K145: 45.6 | L145: 86.5 | M145: 88.3 | N145: 83.7 | O145: 80
A146: All xnmsc - any treatment, ages 65+ | C146: 58.32521012 | D146: 65.6700677 | E146: 74.9 | F146: 71 | G146: 74.9 | H146: 64.7 | I146: 67.6 | J146: 76.8 | K146: 28.6 | L146: 66.8 | M146: 63.4 | N146: 52.8 | O146: 64.5
A147: Colorectal Cancer - any treatment, ages 0-64 | C147: 79.91717552 | D147: 86.5893228 | E147: 92.7 | F147: 92.1 | G147: 95.1 | H147: 90.7 | I147: 92.2 | J147: 93.8 | K147: 44.8 | L147: 91.3 | M147: 94 | N147: 92.3 | O147: 86.3
A148: Colorectal Cancer - any treatment, ages 65+ | C148: 68.70433398 | D148: 75.0461735 | E148: 79.5 | F148: 81.4 | G148: 82.6 | H148: 76.1 | I148: 79.5 | J148: 83.5 | K148: 38.5 | L148: 79.4 | M148: 79.2 | N148: 76.1 | O148: 77.7
A149: Female Breast Cancer - any treatment, ages 0-64 | C149: 86.07415387 | D149: 93.69461457 | E149: 97.6 | F149: 95.4 | G149: 99.2 | H149: 94.7 | I149: 97 | J149: 94.3 | K149: 72.8 | L149: 98.6 | M149: 99.5 | N149: 97.8 | O149: 94
A150: Female Breast Cancer - any treatment, ages 65+ | C150: 77.60270581 | D150: 86.5046946 | E150: 94.9 | F150: 87.8 | G150: 95.2 | H150: 87.7 | I150: 90.8 | J150: 87 | K150: 53.1 | L150: 95.5 | M150: 90.9 | N150: 70.7 | O150: 91.9
A151: Prostate Cancer - any treatment, ages 0-64 | C151: 63.53605395 | D151: 70.56629072 | E151: 77 | F151: 79.1 | G151: 94.7 | H151: 65.2 | I151: 64.9 | J151: 91.4 | K151: 20.8 | L151: 71.4 | M151: 80.4 | N151: 53.9 | O151: 52.5
A152: Prostate Cancer - any treatment, ages 65+ | C152: 60.00165777 | D152: 69.57831979 | E152: 76.5 | F152: 80 | G152: 91.9 | H152: 63.1 | I152: 64.7 | J152: 85.9 | K152: 20.1 | L152: 74.4 | M152: 70.5 | N152: 32.9 | O152: 61.1
A154: Breast cancer - % screen detected for ages 50-67 | B154: 49.13373337 | C154: 44.59575373 | D154: 48.65338937 | E154: 51.9 | F154: 47.8 | G154: 54.4 | H154: 29.9 | I154: 54.3 | J154: 48.4 | K154: 52.1 | L154: 50.5 | M154: 49.3 | N154: 52 | O154: 41.4
A155: Breast cancer - % with full screening category for ages 50-67 | B155: 77.19441392 | C155: 70.56053108 | D155: 72.84877783 | E155: 0 | F155: 97.5 | G155: 95.4 | H155: 42.4 | I155: 86.2 | J155: 71.1 | K155: 90.1 | L155: 100 | M155: 99.8 | N155: 93.5 | O155: 41.4
A156: Cervical cancer - % screen detected for ages 25-67 | B156: 21.2044625 | C156: 28.33474326 | D156: 34.46808449 | E156: 32.1 | F156: 68.9 | G156: 37.8 | H156: 36.8 | I156: 31.9 | J156: 21.7 | K156: 28 | L156: 18.7 | M156: 35.9 | N156: 0 | O156: 0
A157: Table 3C Completeness of the dataset - site specific prognostic indicators & staging information (including grade)
A158: Breast cancer - % with known Bloom and Richardson grade | B158: >78% | C158: =AVERAGE(E158:O158) -> 89.72727273 | D158: =AVERAGE(E158:L158) -> 89.85 | E158: 91.5 | F158: 89.3 | G158: 91.9 | H158: 88.8 | I158: 89.3 | J158: 89 | K158: 85.9 | L158: 93.1 | M158: 88.6 | N158: 89.4 | O158: 90.2
A159: Breast cancer - % with known number of positive nodes | B159: >65% | C159: 71.26363636 | D159: 68.85 | E159: 75.1 | F159: 63.3 | G159: 75.4 | H159: 66 | I159: 73.7 | J159: 66.4 | K159: 56.1 | L159: 74.8 | M159: 80.2 | N159: 70 | O159: 82.9
A160: Breast cancer - % with known invasive size | B160: >65% | C160: 73.58181818 | D160: 72.0375 | E160: 88.7 | F160: 60.8 | G160: 79.6 | H160: 69.9 | I160: 74.8 | J160: 66.3 | K160: 65.7 | L160: 70.5 | M160: 79.6 | N160: 70 | O160: 83.5
A161: Breast cancer - % with known NPI score | B161: >65% | C161: 68.93636364 | D161: 66.5125 | E161: 71.8 | F161: 66.2 | G161: 72.1 | H161: 63.8 | I161: 68.6 | J161: 58.9 | K161: 55.6 | L161: 75.1 | M161: 76.2 | N161: 69.7 | O161: 80.3
A162: Colorectal cancer - % with known pathological Dukes stage | B162: >74% | C162: 73.50909091 | D162: 71.15 | E162: 88.9 | F162: 76.3 | G162: 70.4 | H162: 61 | I162: 87.2 | J162: 54.4 | K162: 52.1 | L162: 78.9 | M162: 79.4 | N162: 79.6 | O162: 80.4
A163: Cervical cancer - % with complete FIGO stage | B163: >70% | C163: 80.05454545 | D163: 75.9875 | E163: 88 | F163: 70 | G163: 81.2 | H163: 70 | I163: 90.2 | J163: 60.3 | K163: 63.7 | L163: 84.5 | M163: 79.6 | N163: 93.1 | O163: 100
A164: Melanoma of the skin cancer - % with known Breslow thickness | B164: >80% | C164: 89.94545455 | D164: =AVERAGE(E164:L164) -> 89.1625 | E164: 93.6 | F164: 85.4 | G164: 93 | H164: 92.1 | I164: 89.7 | J164: 80.6 | K164: 84.5 | L164: 94.4 | M164: 93.9 | N164: 88.1 | O164: 94.1
A165: Melanoma of the skin cancer - % with known Clark level | B165: >80% | C165: 71.30909091 | D165: 66.4125 | E165: 80.3 | F165: 78.2 | G165: 87.3 | H165: 89.6 | I165: 86.6 | J165: 2.9 | K165: 15 | L165: 91.4 | M165: 85.1 | N165: 76.8 | O165: 91.2
A166: Table 3D - Completeness of dataset - Stage
A167: All malignancies excluding NMSC - % with known stage | B167: >70% | C167: =AVERAGE(E167:O167) -> 41.37272727 | D167: =AVERAGE(E167:L167) -> 39.45 | E167: 74.7 | F167: 45.4 | G167: 39 | H167: 13.2 | I167: 46.9 | J167: 27 | K167: 26.3 | L167: 43.1 | M167: 28.1 | N167: 46.9 | O167: 64.5
A168: Table 3H - Completeness of dataset - Detailed Stage
A169: Overall % staged | B169: - | C169: =AVERAGE(E169:O169) -> 39.10878556 | D169: =AVERAGE(E169:L169) -> 37.0934087 | E169: 72.7395456 | F169: 44.06355169 | G169: 32.33252623 | H169: 7.050266455 | I169: 42.2016982 | J169: 29.4932508 | K169: 24.555536 | L169: 44.31089463 | M169: 26.83483115 | N169: 45.86710812 | O169: 60.74743225

Sheet Table 4
A1: Table 4 Coding changes from 01/07/2010 to 31/03/2011 that have been implemented at UK cancer registries (Yes/No)
A3: Table No. & Parameters | B3: ECRIC | C3: NWCIS | D3: NYCRIS | E3: OCIU | F3: SWCIS | G3: Thames | H3: Trent | I3: WMCIU | J3: Scotland | K3: WCISU | L3: NICR
A4: Pr/11/01 Pituicytoma | B4: YES | C4: NO | D4: YES | E4: YES | F4: YES | G4: YES | H4: YES | I4: YES | J4: YES | K4: YES | L4: YES
A5: Pr/11/02 In-Situ Follicular Lymphoma | B5: YES | C5: NO | D5: YES | E5: YES | F5: YES | G5: YES | H5: NO | I5: YES | J5: YES | K5: YES | L5: YES
A6: Pr/11/03 Teratoma of Testis | B6: YES | C6: NO | D6: YES | E6: YES | F6: YES | G6: YES | H6: NO | I6: NO | J6: YES | K6: NO | L6: YES
A7: Pr/11/04 Breast Multiple Primary Rules | B7: YES | C7: NO | D7: YES | E7: YES | F7: YES | G7: YES | H7: YES | I7: YES | J7: YES | K7: NO | L7: YES
A8: Pr/11/05 Teratoma of Sacrococcygeal Region | B8: YES | C8: NO | D8: YES | E8: YES | F8: YES | G8: YES | H8: NO | I8: YES | J8: YES | K8: YES | L8: YES
A9: Pr/11/07 Recording of Gleason Grade | B9: YES | C9: NO | D9: NO | E9: YES | F9: NO | G9: YES | H9: NO | I9: NO | J9: YES | K9: NO | L9: YES
A11: Coding changes highlighted in grey have been agreed this year but have an implementation date of 01/01/2010 and so can still be commented on whether a cancer registry has implemented the change
A12: The above coding changes relate to when the change was agreed in the period 01/07/2010 to 31/03/2011

Sheet Table 5
A1: TABLE 5: | C1: Trends in timeliness (as reported by registries)
A2: Proportion (%) of registrations completed (ONS Ready) within 18 months of year end (Target: 100%*)
A4: Registry | C4: 1999 | D4: 2000 | E4: 2001 | F4: 2002 | G4: 2003 | H4: 2004 | I4: 2005 | J4: 2006 | K4: 2007 | L4: 2008 | M4: 2009 | N4: 2010
C5: by 06/01 | D5: by 06/02 | E5: by 06/03 | F5: by 06/04 | G5: by 06/05 | H5: by 06/06 | I5: by 06/07 | J5: by 06/08 | K5: by 06/09 | L5: by 06/10 | M5: by 03/11 | N5: by 12/11
A6: England (average) | D6: 98 | E6: 96 | F6: 96.76464118 | G6: 99.11665632 | H6: 101.1848935 | I6: 101.020326 | J6: 100.2579687 | K6: 99.78616369 | L6: 101.7433304 | M6: 103.3654251 | N6: 101.988837
A7: Scotland | C7: 30.04756668 | D7: 25.07479789 | E7: 30.18904621 | F7: 44.69773349 | G7: 71.60161681 | H7: 59.7356458 | I7: 54.3955635 | J7: 48.23379798 | K7: 66.62639133 | L7: 95.42602298 | M7: 93.24693839 | N7: 93.50455055
A8: Wales | C8: 103.6603221 | D8: 103.9161124 | E8: 101.1446691 | F8: 98.99601455 | G8: 104.6031335 | H8: 105.9888901 | I8: 101.8505644 | J8: 103.1327139 | K8: 103.4199807 | L8: 103.6247086 | M8: 101.6242884 | N8: 101.0040047
A9: Northern Ireland | D9: 0 | E9: 0 | F9: 102.552994 | G9: 103.7741592 | H9: 104.6294927 | I9: 99.98077755 | J9: 103.2837787 | K9: 107.0548609 | L9: 106.3373144 | M9: 104.1134692 | N9: 98.5327589
A10: UK average1 | C10: 74.75341836 | D10: 90.56210103 | E10: 90 | F10: 92.19649564 | G10: 96.9623943 | H10: 97.67112622 | I10: 96.66247879 | J10: 95.66149769 | K10: 97.12358225 | L10: 101.386635 | M10: 102.3579046 | N10: 100.8138191
A12: * | B12: The target for completeness was originally 90%. This changed to 100% for the 2000 diagnosis data, reported in 2002.
A13: 1 | B13: GB average prior to 2002 published report
A14: Note: 1998 report published data were not included here because the definition of "ONS Ready" changed from 1999 onwards

Sheet Table 6
A1: TABLE 6: | C1: Trends in timeliness (as reported by ONS)
A2: Proportion (%) of registrations received by ONS within 18 months
A3: of year end (Target: 100%*)
A4: (as percentage of the previous 3 complete years held by ONS**)
A6: Registry | C6: 2001 | D6: 2002 | E6: 2003 | F6: 2004 | G6: 2005 | H6: 2006 | I6: 2007 | J6: 2008 | K6: 2009 | L6: 2010
C7: by 06/03 | D7: by 06/04 | E7: by 06/05 | F7: by 06/06 | G7: by 06/07 | H7: by 06/08 | I7: by 06/09 | J7: by 06/10 | K7: by 03/11 | L7: by 12/11
A8: England (average) | C8: 85.74858443 | D8: 95.7207699 | E8: 99.75093007 | F8: 101.3419628 | G8: 101.3419628 | H8: 101.1354375 | I8: 99.41474199 | J8: 102.3778395 | K8: 103.4835479 | L8: 1.025968396
B9: Eastern | C9: 84.9 | D9: 94.4 | E9: 102 | F9: 102 | G9: 105 | H9: 101.2 | I9: 102.8 | J9: 105.8 | K9: 103.3 | L9: 1.018579721
B10: North West | C10: 39.72491258 | D10: 97.1072818 | E10: 100.2188708 | F10: 103.9566907 | G10: 105 | H10: 105.0121877 | I10: 98.45510489 | J10: 104.7497206 | K10: 110.4670907 | L10: 1.047
B11: Northern & Yorkshire | C11: 69.5 | D11: 98.1 | E11: 99.4 | F11: 98.6 | G11: 93 | H11: 95.8 | I11: 95.5 | J11: 98.5 | K11: 101.4 | L11: 0.9950416088
B12: Oxford | C12: 100.3233339 | D12: 95.89455488 | E12: 99.76343513 | F12: 105.5568218 | G12: 98 | H12: 99.96209865 | I12: 98.52089882 | J12: 109.5390845 | K12: 102.7924357 | L12: 1.018916368
B13: South & West | C13: 78.70584375 | D13: 95.87951493 | E13: 101.4005661 | F13: 102.2959948 | G13: 101 | H13: 102.6259493 | I13: 97.55068421 | J13: 98.54770549 | K13: 98.75427048 | L13: 1.020462036
B14: Thames | C14: 92.6654232 | D14: 91.73447908 | E14: 97.01101184 | F14: 97.11968303 | G14: 98 | H14: 99.62008684 | I14: 100.3 | J14: 101.1323156 | K14: 104.0344451 | L14: 1.020015597
B15: Trent | C15: 102.413006 | D15: 95.38000983 | E15: 99.80989695 | F15: 108.0967069 | G15: 108.0967069 | H15: 104.0294539 | I15: 103.4062862 | J15: 105.9322253 | K15: 106.623015 | L15: 1.035050154
B16: West Midlands | C16: 98.07531614 | D16: 101.0069853 | E16: 102.4855733 | F16: 101.5148282 | G16: 100 | H16: 100.8868282 | I16: 100.3044486 | J16: 101.9275833 | K16: 100.7132527 | L16: 1.052681684
A18: * | B18: The target for completeness was originally 90%. This changed to 100% for the 2000 diagnosis data, reported in 2002.
A19: ** | B19: The % complete data were supplied via the management reports supplied quarterly by ONS, without any intervention
A20: ** Note: The % used in this table DIFFERS from the one used in table 1.

Sheet Table 7
A1: TABLE 7: | C1: Trends in % Death Certificate Only
A3: % DCO: males (target: 2%)
A4: Registry | C4: Year report published 1
C5: 2000 | D5: 2001 | E5: 2002 | F5: 2003 | G5: 2004 | H5: 2005 | I5: 2006 | J5: 2007 | K5: 2008 | L5: 2009 | M5: 2010 | N5: 2011 | O5: 2012
A6: England (average) | E6: 4.5 | F6: 5.1 | G6: 4.755555556 | H6: 4.193548495 | I6: 3.62130609 | J6: 4.107373987 | K6: 3.6375 | L6: =(SUM(L7:L14))/8 -> 2.753353205 | M6: =(SUM(M7:M14))/8 -> 1.8462776 | N6: =(SUM(N7:N14))/8 -> 1.4941688 | O6: =(SUM(O7:O14))/8 -> 1.403783747
B7: Eastern 2 | C7: 0.2 | D7: 0.4 | E7: 0.3 | F7: 0.19 | G7: 0.5 | H7: 0.23 | I7: 0.07 | J7: 4.8 | K7: 1.3 | L7: 0.007 | M7: 0.007 | N7: 0.04 | O7: 0.013
B8: North West 3 | C8: 2.412524512 | D8: 3.329832065 | E8: 3.863253007 | F8: 6.216340563 | G8: 5.882929684 | H8: 4.826905372 | I8: 4.716464177 | J8: 5.156007 | K8: 4.8 | L8: 6.6 | M8: 6.374209 | N8: 3.262583 | O8: 2.6
B9: Northern & Yorkshire4 | C9: 0.9 | D9: 1.4 | E9: 1.6 | F9: 1.4 | G9: 1.9 | H9: 1.6 | I9: 1.5 | J9: 2.1 | K9: 1.7 | L9: 1.93 | M9: 1.03 | N9: 0.94 | O9: 1.15
B10: Oxford | C10: 2.1 | D10: 1.1 | E10: 0.7 | F10: 1.6 | G10: 1.3 | H10: 1.2 | I10: 3.3 | J10: 2 | K10: 2.6 | L10: 1 | M10: 0.8 | N10: 2 | O10: 2.242152466
B11: South & West | C11: 9.154057772 | D11: 8.014877917 | E11: 10.6 | F11: 8.2 | G11: 7.6 | H11: 3.9 | I11: 3.3 | J11: 1.87 | K11: 1.3 | L11: 1.4156 | M11: 1.6975 | N11: 1.4 | O11: 1.17
B12: Thames 2 | C12: 16 | D12: 11.8 | E12: 7.1 | F12: 6.861841378 | G12: 4.8 | H12: 4.368755014 | I12: 4.677211566 | J12: 4.342486183 | K12: 3 | L12: 2.094499876 | M12: 1.778171139 | N12: 1.704480891 | O12: 1.667039606
B13: Trent | C13: 7.6 | D13: 7.686387686 | E13: 9.14770608 | F13: 9.3 | G13: 6.7 | H13: 5.994377437 | I13: 3.423003248 | J13: 2.589721045 | K13: 2.3 | L13: 2.074910367 | M13: 1.633340658 | N13: 1.926286509 | O13: 1.768077906
B14: West Midlands | C14: 6.2 | D14: 12.1 | E14: 5.5 | F14: 5.5 | G14: 9.2 | H14: 9.4 | I14: 6.3 | J14: 10.00077767 | K14: 12.1 | L14: 6.904815397 | M14: 1.45 | N14: 0.68 | O14: 0.62
A15: Scotland | C15: 0.93 | D15: 0.5219985086 | E15: 0.5244755245 | F15: 0.52 | G15: 0.5 | H15: 0.8577949162 | I15: 0.6700299543 | J15: 0.6570004531 | K15: 0.5 | L15: 0.5487896557 | M15: 0.5807115554 | N15: 0.3686113277 | O15: 0.3981602252
A16: Wales | C16: 4.6 | D16: 3.15 | E16: 3.91 | F16: 6.865747831 | G16: 6.8 | H16: 5.220835334 | I16: 3.143507973 | J16: 3.2 | K16: 2.6 | L16: 2.1 | M16: 2.24220104 | N16: 2.425494888 | O16: 2
A17: Northern Ireland7 | E17: 1.5 | F17: 1.442150115 | G17: 1.56 | H17: 1.4 | I17: 1.4 | J17: 1.2 | K17: 0.9 | L17: 0.66 | M17: 0.38 | N17: 0.21 | O17: 0.54
A18: UK8 Average | C18: 4.450338148 | D18: 4.759705836 | E18: 4.0001643 | F18: 4.53820511 | G18: 4.305 | H18: 3.768380558 | I18: 3.150441062 | J18: 3.446908395 | K18: 3.009090909 | L18: =(SUM(L7:L17))/11 -> 2.303237754 | M18: =(SUM(M7:M17))/11 -> 1.633921217 | N18: =(SUM(N7:N17))/11 -> 1.359768783 | O18: =(SUM(O7:O17))/11 -> 1.288039109
A20: % DCO: females (target: 2%)
A21: Registry | C21: Year report published 1
C22: 2000 | D22: 2001 | E22: 2002 | F22: 2003 | G22: 2004 | H22: 2005 | I22: 2006 | J22: 2007 | K22: 2008 | L22: 2009 | M22: 2010 | N22: 2011 | O22: 2012
A23: England (average) | E23: 4.9 | F23: 5.2 | G23: 4.877777778 | H23: 4.339177974 | I23: 3.802617923 | J23: 3.891515296 | K23: 3.6125 | L23: =(SUM(L24:L31))/8 -> 2.78279734 | M23: =(SUM(M24:M31))/8 -> 2.015695297 | N23: =(SUM(N24:N31))/8 -> 1.677458235 | O23: =(SUM(O24:O31))/8 -> 1.756934721
B24: Eastern 2 | C24: 0.2 | D24: 0.5 | E24: 0.4 | F24: 0.38 | G24: 0.4 | H24: 0.093 | I24: 0.12 | J24: 5 | K24: 1 | L24: 0.04 | M24: 0 | N24: 0.007 | O24: 0.006
B25: North West 3 | C25: 2.711347919 | D25: 3.229575643 | E25: 4.144189409 | F25: 6.132283064 | G25: 5.336588537 | H25: 4.690376474 | I25: 4.482346578 | J25: 4.968281 | K25: 4.8 | L25: 6.2 | M25: 6.269521 | N25: 3.343613 | O25: 3.3
B26: Northern & Yorkshire4 | C26: 1.25 | D26: 1.6 | E26: 2 | F26: 1.7 | G26: 1.8 | H26: 1.5 | I26: 1.3 | J26: 1.68 | K26: 1.6 | L26: 1.92 | M26: 1.06 | N26: 0.99 | O26: 1.04
B27: Oxford | C27: 2.3 | D27: 1 | E27: 1.3 | F27: 1.9 | G27: 1.5 | H27: 1.8 | I27: 3.9 | J27: 1.6 | K27: 2.6 | L27: 1.2 | M27: 0.8 | N27: 2.5 | O27: 2.921511628
B28: South & West | C28: 9.477645258 | D28: 8.59061173 | E28: 10.9 | F28: 8.5 | G28: 8.7 | H28: 5.5 | I28: 3.6 | J28: 2.22 | K28: 1.6 | L28: 1.8321 | M28: 2.2384 | N28: 1.9 | O28: 1.57
B29: Thames 2 | C29: 16.1 | D29: 11.8 | E29: 7.8 | F29: 7.578003543 | G29: 4.9 | H29: 4.478715538 | I29: 4.831656416 | J29: 3.904443874 | K29: 3 | L29: 2.585542071 | M29: 2.061978546 | N29: 2.041676243 | O29: 2.072925211
B30: Trent | C30: 7.2 | D30: 6.831888428 | E30: 8.348540146 | F30: 9 | G30: 7.2 | H30: 5.567986231 | I30: 3.70705989 | J30: 2.149570903 | K30: 2.2 | L30: 1.968871595 | M30: 1.815662826 | N30: 1.907376635 | O30: 2.305040931
B31: West Midlands | C31: 6.8 | D31: 11.6 | E31: 5.9 | F31: 5 | G31: 9.8 | H31: 9.4 | I31: 6.9 | J31: 9.60982659 | K31: 12.1 | L31: 6.515865051 | M31: 1.88 | N31: 0.73 | O31: 0.84
A32: Scotland | C32: 0.97 | D32: 0.3161141095 | E32: 0.3291688487 | F32: 0.7 | G32: 0.4 | H32: 0.7981326707 | I32: 0.7233947349 | J32: 0.7492507493 | K32: 0.8 | L32: 0.7662560871 | M32: 0.646478394 | N32: 0.4566512244 | O32: 0.671227572
A33: Wales | C33: 5.3 | D33: 3.65 | E33: 4.35 | F33: 7.582357746 | G33: 6.3 | H33: 6.006389776 | I33: 4.11196433 | J33: 4.1 | K33: 2.9 | L33: 2.5 | M33: 2.666666667 | N33: 2.968352968 | O33: 2.5
A34: Northern Ireland7 | E34: 2.5 | F34: 1.620029455 | G34: 1.29 | H34: 1.7 | I34: 2 | J34: 1.8 | K34: 1.3 | L34: 0.48 | M34: 0.37 | N34: 0.15 | O34: 0.62
A35: UK8 Average | C35: 4.708970438 | D35: 4.730511273 | E35: 4.29129575 | F35: 4.698479979 | G35: 4.324166667 | H35: 3.963093685 | I35: 3.421576697 | J35: 3.434670283 | K35: 3.081818182 | L35: =(SUM(L24:L34))/11 -> 2.364421346 | M35: =(SUM(M24:M34))/11 -> 1.800791585 | N35: =(SUM(N24:N34))/11 -> 1.544970006 | O35: =(SUM(O24:O34))/11 -> 1.622427758
A37: 1 | B37: Most, but not all, registries' analysis is of the diagnosis year two years prior to report publish year
A38: 2 | B38: Reports from 2007 reflect the boundary change between Eastern and Thames where Eastern includes Hertfordshire and Essex from 2007 onwards
A39: 3 | B39: For all reports, the figures for NWCIS were produced by multiplying the office area-specific estimates for the old MCCR (NWCIS: Liverpool) and NWCR (NWCIS: Manchester) registries by the proportions of ONS Ready cases reported for each area for each year
A40: 4 | B40: For 2000 reports the separate estimates for Northern and Yorkshire registries have been averaged
A41: 7 | B41: Northern Ireland did not submit any data until the report published in 2002
A42: 8 | B42: GB average prior to 2002; England & Scotland average in 1998 report

Sheet Table 8
A1: TABLE 8: | C1: Trends in % Microscopically verified
A3: % Microscopically verified: males
A4: Registry | C4: Year report published 1
C5: 2000 | D5: 2001 | E5: 2002 | F5: 2003 | G5: 2004 | H5: 2005 | I5: 2006 | J5: 2007 | K5: 2008 | L5: 2009 | M5: 2010 | N5: 2011 | O5: 2012
A6: England (average) | E6: 79.4 | F6: 81.1 | G6: 80.95638767 | H6: 81.74410818 | I6: 82.69652453 | J6: 83.0803047 | K6: 84.325 | L6: =(SUM(L7:L14))/8 -> 84.92593161 | M6: 83.40460693 | N6: 82.83206934 | O6: =(SUM(O7:O14))/8 -> 83.38940272
B7: Eastern 2 | C7: 89.9 | D7: 82.2 | E7: 85.5 | F7: 85.7 | G7: 86.3 | H7: 86.9 | I7: 86.6 | J7: 82.5 | K7: 84.8 | L7: 85.3 | M7: 84.8 | N7: 85.2 | O7: 85.2
B8: North West 3 | C8: 76.91997627 | D8: 79.96418225 | E8: 78.5220462 | F8: 80.8459865 | G8: 77.42729117 | H8: 76.44384931 | I8: 77.53117 | J8: 76.40002 | K8: 77.7 | L8: 79.6 | M8: 75.24842 | N8: 77.12514 | O8: 77.63
B9: Northern & Yorkshire4 | C9: =(79.1+82.2)/2 -> 80.65 | D9: 82.8 | E9: 84.3 | F9: 85.1 | G9: 84.8 | H9: 85.1 | I9: 85.3 | J9: 86.21 | K9: 86.9 | L9: 86.13 | M9: 83.91 | N9: 83.42 | O9: 83.55
B10: Oxford | C10: 86.1 | D10: 86 | E10: 88.5 | F10: 87.7 | G10: 87.5 | H10: 87.8 | I10: 86.3 | J10: 87.5 | K10: 86.8 | L10: 90.1 | M10: 85.8 | N10: 81.5 | O10: 84.72443223
B11: South & West | C11: 85.81536388 | D11: 81.19340032 | E11: 63.4 | F11: 72.2 | G11: 77.2 | H11: 82.5 | I11: 85.4 | J11: 84.31 | K11: 82.4 | L11: 84.663 | M11: 84.3 | N11: 84.9 | O11: 85.01
B12: Thames 2 | C12: 70.1 | D12: 73.3 | E12: 76 | F12: 77.9580399 | G12: 77.97315885 | H12: 79.91393771 | I12: 79.98139135 | J12: 81.78348978 | K12: 84.6 | L12: 85.22305599 | M12: 86.2976224 | N12: 82.54611568 | O12: 85.76489893
B13: Trent6 | C13: 70.4 | D13: 74.20875421 | E13: 75.80645161 | F13: 76.8 | G13: 77.7184102 | H13: 78.33499592 | I13: 81.48579995 | J13: 83.07089761 | K13: 83.6 | L13: 84.14066672 | M13: 81.30081301 | N13: 81.01529903 | O13: 80.4958906
B14: West Midlands | C14: 79.4 | D14: 78.9 | E14: 84.5 | F14: 84 | G14: 83.4 | H14: 82.3 | I14: 84.09690946 | J14: 82.86803017 | K14: 87.8 | L14: 84.25073017 | M14: 85.58 | N14: 86.95 | O14: 84.74
A15: Scotland | C15: 84.6 | D15: 84.25718784 | E15: 84.21805467 | F15: 83.9 | G15: 85.41857178 | H15: 84.62449656 | I15: 84.27400284 | J15: 84.89654131 | K15: 86 | L15: 84.73913697 | M15: 84.94560423 | N15: 84.28439782 | O15: 84.49234571
A16: Wales | C16: 43 | D16: 44.11 | E16: 68.16 | F16: 67.89178152 | G16: 66.18205632 | H16: 72.02352376 | I16: 70.91116173 | J16: 77.2 | K16: 77 | L16: 80.1 | M16: 83.57885615 | N16: 82.30367631 | O16: 83.7
A17: Northern Ireland8 | E17: 76.1 | F17: 75.35234349 | G17: 78.9 | H17: 82 | I17: 77.6 | J17: 83.5 | K17: 81.1 | L17: 84.4 | M17: 83.6 | N17: 86.9 | O17: 83.3
A18: UK9 Average | C18: 76.90961366 | D18: 80.20020139 | E18: 78.78608966 | F18: 79.77605041 | G18: 79.92567643 | H18: 81.19541616 | I18: 81.42115711 | J18: 82.74899808 | K18: 83.51818182 | L18: =(SUM(L7:L17))/11 -> 84.42241726 | M18: 83.57830144 | N18: 83.28587535 | O18: =(SUM(O7:O17))/11 -> 83.50977886
A20: % Microscopically verified: females
A21: Registry | C21: Year report published 1
C22: 2000 | D22: 2001 | E22: 2002 | F22: 2003 | G22: 2004 | H22: 2005 | I22: 2006 | J22: 2007 | K22: 2008 | L22: 2009 | M22: 2010 | N22: 2011 | O22: 2012
A23: England (average) | E23: 80.3 | F23: 81.4 | G23: 81.68160784 | H23: 82.73304521 | I23: 83.62328358 | J23: 84.91966098 | K23: 85.775 | L23: =(SUM(L24:L31))/8 -> 86.38010518 | M23: 85.34463497 | N23: 84.9795245 | O23: =(SUM(O24:O31))/8 -> 85.73665997
B24: Eastern 2 | C24: 85.2 | D24: 85 | E24: 86.8 | F24: 85.4 | G24: 87.8 | H24: 88.2 | I24: 87.9 | J24: 83.5 | K24: 86.5 | L24: 86.2 | M24: 87.2 | N24: 87.3 | O24: 87.4
B25: North West 3 | C25: 77.48201054 | D25: 80.14325556 | E25: 79.13734722 | F25: 80.92812522 | G25: 77.98073869 | H25: 76.39674325 | I25: 77.82587 | J25: 77.66052 | K25: 77.9 | L25: 80 | M25: 76.5 | N25: 78.40719 | O25: 78.437
B26: Northern & Yorkshire4 | C26: =(79.5+82.7)/2 -> 81.1 | D26: 83.2 | E26: 84.5 | F26: 84.8 | G26: 84.4 | H26: 85.1 | I26: 85.7 | J26: 89.85 | K26: 89.9 | L26: 90.17 | M26: 89.06 | N26: 89.41 | O26: 89.5
B27: Oxford | C27: 86.8 | D27: 87.6 | E27: 87.8 | F27: 87.3 | G27: 87.5 | H27: 89 | I27: 86.7 | J27: 88.6 | K27: 88.2 | L27: 89.7 | M27: 86.2 | N27: 82.7 | O27: 85.5377907
B28: South & West | C28: 84.87786211 | D28: 81.0675563 | E28: 65.9 | F28: 72.8 | G28: 78.2 | H28: 84.5 | I28: 87.4 | J28: 86.16 | K28: 84.6 | L28: 86.194 | M28: 86.1 | N28: 85.5 | O28: 87.35
B29: Thames 2 | C29: 71.3 | D29: 74.8 | E29: 76.2 | F29: 78.28916447 | G29: 79.53493498 | H29: 79.77888103 | I29: 81.45198564 | J29: 84.21525816 | K29: 85.3 | L29: 86.54056906 | M29: 87.26261422 | N29: 84.71615721 | O29: 87.39467601
B30: Trent6 | C30: 74 | D30: 77.30870712 | E30: 78.47824104 | F30: 78.7 | G30: 78.94885561 | H30: 81.17039587 | I30: 83.89488426 | J30: 84.5770331 | K30: 85.9 | L30: 86.17898833 | M30: 84.34446551 | N30: 83.77284878 | O30: 83.15381301
B31: West Midlands | C31: 80.3 | D31: 81.1 | E31: 85.5 | F31: 84.4 | G31: 83.5 | H31: 83.6 | I31: 84.35528232 | J31: 84.79447656 | K31: 87.9 | L31: 86.05728403 | M31: 86.09 | N31: 88.03 | O31: 87.12
A32: Scotland | C32: 85.9 | D32: 85.55898227 | E32: 85.29961846 | F32: 84.8 | G32: 86.44238987 | H32: 86.238878 | I32: 85.76329331 | J32: 85.8427287 | K32: 86.8 | L32: 86.26468061 | M32: 85.9816264 | N32: 85.94308405 | O32: 86.58835678
A33: Wales | C33: 43 | D33: 58.61 | E33: 61.12 | F33: 64.83800708 | G33: 61.71854217 | H33: 66.41533546 | I33: 70.54743622 | J33: 77.8 | K33: 79.1 | L33: 80.7 | M33: 84.64327485 | N33: 84.31508432 | O33: 85.2
A34: Northern Ireland8 | E34: 81.9 | F34: 80.94256259 | G34: 82.9 | H34: 85 | I34: 82.6 | J34: 85.1 | K34: 82.7 | L34: 87.2 | M34: 87.5 | N34: 88.7 | O34: 86
A35: UK9 Average | C35: 77.25815518 | D35: 81.46868451 | E35: 79.28642412 | F35: 80.24978201 | G35: 80.51628355 | H35: 81.8543017 | I35: 82.62669014 | J35: 84.37272877 | K35: 84.98181818 | L35: =(SUM(L24:L34))/11 -> 85.92777473 | M35: 85.53472554 | N35: 85.34494221 | O35: =(SUM(O24:O34))/11 -> 85.78923968
A37: 1 | B37: Most, but not all, registries' analysis is of the diagnosis year two years prior to report publish year
A38: 2 | B38: Reports from 2007 reflect the boundary change between Eastern and Thames where Eastern includes Hertfordshire and Essex from 2007 onwards
A39: 3 | B39: For all reports, the figures for NWCIS were produced by multiplying the office area-specific estimates for the old MCCR (NWCIS: Liverpool) and NWCR (NWCIS: Manchester) registries by the proportions of ONS Ready cases reported for each area for each year
A40: 4 | B40: For 2000 reports the separate estimates for Northern and Yorkshire registries have been averaged
A41: 6 | B41: Prior to the report published in 2000, Trent excluded DCOs from these calculations, artificially inflating the %MV reported - to avoid confusion, the figures for 1998 and 1999 have not been shown
A42: 8 | B42: Northern Ireland did not submit any data until the report published in 2002
A43: 9 | B43: GB average prior to 2002; England & Scotland average in 1998 report

Sheet Table 9
A1: TABLE 9: | C1: Trends in Mortality : Incidence ratios
A3: Mortality : Incidence ratio - males
A4: Registry | C4: Year report published 1
C5: 2000 | D5: 2001 | E5: 2002 | F5: 2003 | G5: 2004 | H5: 2005 | I5: 2006 | J5: 2007 | K5: 2008 | L5: 2009 | M5: 2010 | N5: 2011 | O5: 2012
A6: England (average)2 | E6: 0.59 | F6: 0.58 | G6: 0.5901572468 | H6: 0.5650457865 | I6: 0.5434444918 | J6: 0.5385278087 | K6: 0.53625 | L6: =(SUM(L7:L14))/8 -> 0.5284782557 | M6: =(SUM(M7:M14))/8 -> 0.5109728489 | N6: =(SUM(N7:N14))/8 -> 0.4933288115 | O6: =(SUM(O7:O14))/8 -> 0.4981429053
B7: Eastern 3,4 | C7: 0.659 | D7: 0.635 | E7: 0.6 | F7: 0.64 | G7: 0.6 | H7: 0.5 | I7: 0.54 | J7: 0.54 | K7: 0.54 | L7: 0.53 | M7: 0.51 | N7: 0.49 | O7: 0.51
B8: North West 5 | C8: 0.6568121323 | D8: 0.6196188231 | E8: 0.6095111023 | F8: 0.5907147737 | G8: 0.6094039552 | H8: 0.566101738 | I8: 0.5328962135 | J8: 0.524194 | K8: 0.57 | L8: 0.58 | M8: 0.5372064 | N8: 0.5 | O8: 0.522
B9: Northern & Yorkshire | C9: 0.681 | D9: 0.643 | E9: 0.627 | F9: 0.581 | G9: 0.6 | H9: 0.58 | I9: 0.57 | J9: 0.57 | K9: 0.56 | L9: 0.55 | M9: 0.53 | N9: 0.5 | O9: 0.5
B10: Oxford | C10: 0.536 | D10: 0.552 | E10: 0.526 | F10: 0.536 | G10: 0.54 | H10: 0.53 | I10: 0.5 | J10: 0.51 | K10: 0.5 | L10: 0.47 | M10: 0.46 | N10: 0.45 | O10: 0.49
B11: South & West | C11: 0.6301886792 | D11: 0.58 | E11: 0.569 | F11: 0.53 | G11: 0.53 | H11: 0.53 | I11: 0.5 | J11: 0.51 | K11: 0.5 | L11: 0.4916 | M11: 0.5 | N11: 0.5 | O11: 0.48
B12: Thames4 | C12: 0.631 | D12: 0.629 | E12: 0.6 | F12: n/a | G12: 0.6152273319 | H12: 0.6033841441 | I12: 0.5948325222 | J12: 0.561189578 | K12: 0.55 | L12: 0.5275830791 | M12: 0.5062960132 | N12: 0.4849058748 | O12: 0.4803460879
B13: Trent | C13: 0.68 | D13: 0.6378066378 | E13: 0.6172851016 | F13: 0.611 | G13: 0.6304836895 | H13: 0.633082434 | I13: 0.5653368868 | J13: 0.5395252178 | K13: 0.53 | L13: 0.529178427 | M13: 0.5242803779 | N13: 0.4917246175 | O13: 0.5027971545
B14: West Midlands | C14: 0.615 | D14: 0.5629 | E14: 0.56 | F14: 0.59 | G14: 0.57 | H14: 0.569 | I14: 0.5448897173 | J14: 0.5533136738 | K14: 0.54 | L14: 0.5494645398 | M14: 0.52 | N14: 0.53 | O14: 0.5
A15: Scotland | C15: 0.621 | D15: 0.614301102 | E15: 0.5896376351 | F15: 0.615 | G15: 0.643278743 | H15: 0.6109926558 | I15: 0.5992432603 | J15: 0.576952122 | K15: 0.6 | L15: 0.5817922117 | M15: 0.5653484269 | N15: 0.5454029914 | O15: 0.5337406467
A16: Wales | C16: 0.598 | D16: 0.6003 | E16: 0.5403 | F16: 0.5579377233 | G16: 0.5569089718 | H16: 0.5258041287 | I16: 0.5003416856 | J16: 0.5 | K16: 0.48 | L16: 0.49 | M16: 0.4842937608 | N16: 0.4828148793 | O16: 0.47
A17: Northern Ireland9 | E17: 0.61 | F17: 0.5729269092 | G17: 0.57 | H17: 0.58 | I17: 0.54 | J17: 0.56 | K17: 0.52 | L17: 0.52 | M17: 0.5 | N17: 0.49 | O17: 0.52
A18: UK10 Average | C18: 0.6371573899 | D18: 0.6076295274 | E18: 0.5868310306 | F18: 0.5831849211 | G18: 0.590133578 | H18: 0.5668507385 | I18: 0.5442154477 | J18: 0.5404704174 | K18: 0.5354545455 | L18: =(SUM(L7:L17))/11 -> 0.5290562052 | M18: =(SUM(M7:M17))/11 -> 0.5124931799 | N18: =(SUM(N7:N17))/11 -> 0.4968043966 | O18: =(SUM(O7:O17))/11 -> 0.5008076263
A20: Mortality : Incidence ratio - females
A21: Registry | C21: Year report published 1
C22: 2000 | D22: 2001 | E22: 2002 | F22: 2003 | G22: 2004 | H22: 2005 | I22: 2006 | J22: 2007 | K22: 2008 | L22: 2009 | M22: 2010 | N22: 2011 | O22: 2012
A23: England (average)2 | E23: 0.54 | F23: 0.54 | G23: 0.5506110211 | H23: 0.5118122946 | I23: 0.5081539713 | J23: 0.5057964766 | K23: 0.49625 | L23: =(SUM(L24:L31))/8 -> 0.4955277794 | M23: =(SUM(M24:M31))/8 -> 0.4751496367 | N23: =(SUM(N24:N31))/8 -> 0.4595253781 | O23: =(SUM(O24:O31))/8 -> 0.4611935439
B24: Eastern 3,4 | C24: 0.577 | D24: 0.558 | E24: 0.55 | F24: 0.57 | G24: 0.52 | H24: 0.45 | I24: 0.49 | J24: 0.54 | K24: 0.5 | L24: 0.49 | M24: 0.48 | N24: 0.47 | O24: 0.47
B25: North West 5 | C25: 0.5930587006 | D25: 0.5874615753 | E25: 0.5589930029 | F25: 0.5596507008 | G25: 0.5692257483 | H25: 0.5221368514 | I25: 0.519949858 | J25: 0.5067884 | K25: 0.54 | L25: 0.55 | M25: 0.50389 | N25: 0.47 | O25: 0.488
B26: Northern & Yorkshire | C26: 0.609 | D26: 0.579 | E26: 0.557 | F26: 0.549 | G26: 0.57 | H26: 0.53 | I26: 0.53 | J26: 0.53 | K26: 0.53 | L26: 0.53 | M26: 0.49 | N26: 0.48 | O26: 0.48
B27: Oxford | C27: 0.547 | D27: 0.488 | E27: 0.506 | F27: 0.497 | G27: 0.5 | H27: 0.49 | I27: 0.46 | J27: 0.49 | K27: 0.46 | L27: 0.48 | M27: 0.43 | N27: 0.41 | O27: 0.44
B28: South & West | C28: 0.5261177371 | D28: 0.51 | E28: 0.488 | F28: 0.47 | G28: 0.51 | H28: 0.49 | I28: 0.48 | J28: 0.46 | K28: 0.46 | L28: 0.4525 | M28: 0.47 | N28: 0.46 | O28: 0.44
B29: Thames4 | C29: 0.575 | D29: 0.5537930327 | E29: 0.58 | F29: n/a | G29: 0.5832047609 | H29: 0.555649449 | I29: 0.5506097344 | J29: 0.5207209521 | K29: 0.51 | L29: 0.4919430125 | M29: 0.4727453317 | N29: 0.4514670957 | O29: 0.4513831929
B30: Trent | C30: 0.596 | D30: 0.5482472672 | E30: 0.5492199617 | F30: 0.574 | G30: 0.5870773288 | H30: 0.5242685026 | I30: 0.5007826015 | J30: 0.4947282387 | K30: 0.48 | L30: 0.4713618677 | M30: 0.4645617617 | N30: 0.4547359295 | O30: 0.4501651587
B31: West Midlands | C31: 0.537 | D31: 0.5244 | E31: 0.53 | F31: 0.55 | G31: 0.54 | H31: 0.52 | I31: 0.5105987055 | J31: 0.5041342217 | K31: 0.49 | L31: 0.4984173551 | M31: 0.49 | N31: 0.48 | O31: 0.47
A32: Scotland | C32: 0.558 | D32: 0.5615265998 | E32: 0.5452233111 | F32: 0.553 | G32: 0.5748582084 | H32: 0.5472025336 | I32: 0.5564173316 | J32: 0.524975025 | K32: 0.54 | L32: 0.5344457176 | M32: 0.5117386866 | N32: 0.4913964262 | O32: 0.4837356396
A33: Wales | C33: 0.569 | D33: 0.5694 | E33: 0.5237 | F33: 0.5562210727 | G33: 0.5339185954 | H33: 0.5113099042 | I33: 0.493931137 | J33: 0.5 | K33: 0.49 | L33: 0.49 | M33: 0.4712280702 | N33: 0.4572649573 | O33: 0.47
A34: Northern Ireland9 | E34: 0.52 | F34: 0.5251840943 | G34: 0.5 | H34: 0.53 | I34: 0.49 | J34: 0.52 | K34: 0.5 | L34: 0.48 | M34: 0.46 | N34: 0.46 | O34: 0.48
A35: UK10 Average | C35: 0.5741681448 | D35: 0.5512415857 | E35: 0.5414386612 | F35: 0.5423669061 | G35: 0.5470229995 | H35: 0.5162352574 | I35: 0.5094778508 | J35: 0.508304258 | K35: 0.5 | L35: =(SUM(L24:L34))/11 -> 0.4971516321 | M35: =(SUM(M24:M34))/11 -> 0.4767421682 | N35: =(SUM(N24:N34))/11 -> 0.4622604008 | O35: =(SUM(O24:O34))/11 -> 0.4657530901
A37: 1 | B37: Most, but not all, registries' analysis is of the diagnosis year two years prior to report publish year
A38: 2 | B38: Thames did not receive any mortality data in 2001 and so were excluded from the england average for 2001 registrations in the 2003 report
A39: 3 | B39: Reports from 2007 reflect the boundary change between Eastern and Thames where Eastern includes Hertfordshire and Essex from 2007 onwards
A40: 4 | B40: Thames did not receive any mortality data in 2001 and so an average cannot be obtained for the new combined area of Eastern or figures presented for Thames
A41: 5 | B41: For all reports, the figures for NWCIS were produced by multiplying the office area-specific estimates for the old MCCR (NWCIS: Liverpool) and NWCR (NWCIS: Manchester) registries by the proportions of ONS Ready cases reported for each area for each year
A42: 9 | B42: Northern Ireland did not submit any data until the report published in 2002
A43: 10 | B43: GB average prior to 2002; England & Scotland average in 1998 report

Sheet Table 10a
A1: TABLE 10A: | C1: Trends in completeness of the dataset - demographics and diagnostic details
A3: Completeness of the dataset (UK Average1)
A4: This table shows the % of cases with a Valid Known code on the database
B6: Dataset variable | C6: Year report published 2
C7: 2000 | D7: 2001 | E7: 2002 | F7: 2003 | G7: 2004 | H7: 2005 | I7: 2006 | J7: 2007 | K7: 2008 | L7: 2009 | M7: 2010 | N7: 2011 | O7: 2012
B8: Patient's name | C8: 99.99833333 | D8: 99.99884851 | E8: 99.94545455 | F8: 99.93506285 | G8: 99.98232932 | H8: 100 | I8: 99.99825492 | J8: 99.99833237 | K8: 99.99692886 | L8: 100 | M8: 100 | N8: 100 | O8: 99.99983052
B9: Patient's address | C9: 99.96262754 | D9: 99.71201689 | E9: 99.6307066 | F9: 96.33162142 | G9: 99.70182076 | H9: 99.78303477 | I9: 99.84702567 | J9: 99.80830616 | K9: 99.91510126 | L9: 99.88987793 | M9: 99.80969249 | N9: 99.90696197 | O9: 99.93247929
B10: Sex | C10: 100 | D10: 99.9995152 | E10: 99.99869124 | F10: 99.99725787 | G10: 100 | H10: 99.99166667 | I10: 99.99808436 | J10: 99.99784829 | K10: 99.98181818 | L10: 99.99454545 | M10: 100 | N10: 100 | O10: 100
B11: Ethnicity | I11: 27.54299753 | J11: 38.43948913 | K11: 50.22102618 | L11: 50.02899368 | M11: 42.72199766 | N11: 54.24887695 | O11: 58.49882524
B12: Date of death (where dead) | C12: 99.94554474 | D12: 99.8613748 | E12: 99.97454545 | F12: 99.96206872 | G12: 99.96961296 | H12: 99.98118951 | I12: 99.98807032 | J12: 99.97097452 | K12: 99.99204645 | L12: 100 | M12: 100 | N12: 100 | O12: 100
B13: Post code | C13: 99.69166667 | D13: 99.38571563 | E13: 99.48082182 | F13: 99.5 | G13: 99.56618341 | H13: 98.86538141 | I13: 99.79162334 | J13: 99.66034217 | K13: 99.79071656 | L13: 99.87605036 | M13: 99.82981926 | N13: 99.79909091 | O13: 99.90140873
B14: Date of birth | C14: 99.95153533 | D14: 99.97381904 | E14: 99.99090909 | F14: 99.99324333 | G14: 100 | H14: 100 | I14: 99.99166667 | J14: 100 | K14: 100 | L14: 100 | M14: 100 | N14: 100 | O14: 100
B15: Unique Health Identifier 3 | C15: 56.04579041 | D15: 71.1550296 | E15: 76.11305797 | F15: 70.32488076 | G15: 88.6990624 | H15: 92.47821215 | I15: 94.18770686 | J15: 95.42138793 | K15: 96.75191216 | L15: 99.01412755 | M15: 99.51068192 | N15: 99.66601989 | O15: 99.67050409
B16: NHS number (England Only) | E16: 79.70562641 | F16: 82.6485967 | G16: 95.93806268 | H16: 98.6118494 | I16: 98.4149709 | J16: 99.12784688 | K16: 98.9875 | L16: 99.55203834 | M16: 99.69424452 | N16: 99.82683401 | O16: 99.8
B17: Anniversary (diagnosis) date | C17: 99.41291477 | D17: 99.78181818 | E17: 99.73636364 | F17: 99.75833333 | G17: 99.81666667 | H17: 99.825 | I17: 99.775 | J17: 99.71362413 | K17: 99.71329702 | L17: 99.64443126 | M17: 99.78159875 | N17: 99.84707121 | O17: 99.87881902
B18: Site of primary growth | C18: 94.37300411 | D18: 94.48917807 | E18: 94.69870426 | F18: 94.43153248 | G18: 95.0933699 | H18: 95.00365301 | I18: 95.60422727 | J18: 96.13154542 | K18: 96.19910881 | L18: 96.38714921 | M18: 96.37316187 | N18: 96.6772651 | O18: 96.89552438
B19: Type of growth | C19: 82.14847611 | D19: 82.08411562 | E19: 82.95493503 | F19: 83.95425861 | G19: 84.56409417 | H19: 86.75582174 | I19: 87.73691353 | J19: 88.55581039 | K19: 87.42388612 | L19: 88.42212598 | M19: 86.86478681 | N19: 86.41167271 | O19: 87.70307695
B20: Behaviour of growth | C20: 98.49754251 | D20: 99.66101637 | E20: 99.61833447 | F20: 97.7667515 | G20: 98.38880738 | H20: 99.04410061 | I20: 99.66379308 | J20: 99.93234799 | K20: 99.93074883 | L20: 99.83318127 | M20: 99.41174025 | N20: 99.76280115 | O20: 99.77079165
B21: Basis of diagnosis | C21: 94.48376585 | D21: 94.94439299 | E21: 93.13211263 | F21: 94.05470984 | G21: 94.35458268 | H21: 95.84807606 | I21: 96.49013615 | J21: 97.46631275 | K21: 97.74310981 | L21: 98.61118168 | M21: 98.84642325 | N21: 98.68570117 | O21: 98.48404687
A23: 1 | B23: UK average for 2003; GB average prior to 2003; England & Scotland average in 1998 report
A24: 2 | B24: For most, but not all registries, the analysis is of the diagnosis year two years prior to report publish year
A25: 3 | B25: NHS Number for England and Wales; CHI for Scotland and Health and Social Care Number for Northern Ireland

Sheet Table 10b
A1: TABLE 10B: | C1: Trends in completeness of the dataset - treatment and prognostic tumour details
A3: Completeness of the dataset (UK Average1)
A4: This table shows the % of cases with a Valid Known code on the database
B6: Dataset variable | C6: Year report published 2
C7: 2000 | D7: 2001 | E7: 2002 | F7: 2003 | G7: 2004 | H7: 2005 | I7: 2006 | J7: 2007 | K7: 2008 | L7: 2009 | M7: 2010 | N7: 2011 | O7: 2012
B8: Treatment codes (% yes)
B9: All xnmsc - Therapeutic surgery | C9: 48.2549809 | D9: 42.40223432 | E9: 46.07264324 | F9: 49.34952302 | G9: 45.21076804 | H9: 44.95838625 | I9: 43.20826032 | J9: 43.97178036 | K9: 45.60909091 | L9: 45.72319468 | M9: 47.33871255 | N9: 45.76365795 | O9: 40.23237026
B10: All xnmsc - Radiotherapy 4 | C10: 22.66756412 | D10: 22.04115373 | E10: 18.91249927 | F10: 14.89183472 | G10: 16.79553729 | H10: 18.29883707 | I10: 18.13192647 | J10: 17.94013642 | K10: 17.76 | L10: 16.39464238 | M10: 16.13629626 | N10: 17.88678517 | O10: 15.86686767
B11: All xnmsc - Chemotherapy | C11: 15.50911928 | D11: 15.877274 | E11: 16.61497011 | F11: 14.78670151 | G11: 15.8297061 | H11: 16.89726664 | I11: 18.83088094 | J11: 19.35856254 | K11: 19.50909091 | L11: 21.12077164 | M11: 23.53970731 | N11: 25.0394519 | O11: 20.9664597
B13: Grade - Breast cancer only 5 | C13: 65.49005027 | D13: 72.3938216 | E13: 73.05313531 | F13: 73.94159762 | G13: 76.43235668 | H13: 78.85456919 | I13: 78.45296812 | J13: 76.39333097 | K13: 83.01308218 | L13: 86.25310998 | M13: 87.51540397 | N13: 89.48335443 | O13: 89.72727273
A15: 1 | B15: UK average for 2003; GB average prior to 2003; England & Scotland average in 1998 report
A16: 2 | B16: For most, but not all registries, the analysis is of the diagnosis year two years prior to report publish year
A17: 4 | B17: Wales do not receive radiotherapy data and so the UK average excludes Wales for radiotherapy
A18: 5 | B18: Only grade for breast cancer has been shown, and the staging information been removed from the table since the definitions for which staging data should be collected/presented have changed in the 2007 report
